Workbook

Sheet Infos
A1: Présentation du générateur de codes d'éco-participation
A6: Créer les codes pour l'application de l'éco-participation sur les Articles de Bricolage et de Jardin (ABJ)
A7: Version 1.9 - 05 novembre 2024
A8: Ajout des codes éco-modulés et de la codification simplifiée 2024
A10: A qui s’adresse cet outil ?
A11: Cet outil s'adresse aux metteurs sur le marché d'Articles de Bricolage et de Jardin (ABJ)
A13: A quoi sert-il ?
A14: Ce fichier permet de générer les codes produits qui servent à déclarer les mises en marché. Ces codes produits permettent d'appliquer le tarif de l'éco-participation aux Articles de Bricolage et de Jardin (ABJ) en fonction de leurs caractéristiques.
A15: Pour comprendre comment est constitué ce code produit à 11 chiffres, cliquez sur l’onglet « Comprendre la codification »
A17: Comment générer un code produit ?
A18: Pour générer un code produit cliquez sur l’onglet « Générateur code produit »
A19: Attention : Pour être certain de renseigner les bons codes lors de votre déclaration, utilisez l'onglet « Générateur code produit » et la fonction « copier-coller » en sélectionnant « collage spécial valeur absolue ».
A21: Déclarer l’éco-participation
A23: A quel moment faire votre déclaration ?
A24: La première déclaration à partir des codes produits sera à réaliser en avril 2023 pour les mises en marché du 1er trimestre 2023.
A25: Remarque importante pour les ABJ : une déclaration simplifiée devra être réalisée en janvier 2023 sur la base du CA HT des mises en marché de décembre 2022. Toutes les informations sont à retrouver dans le guide adhérent.
A26: Pour les déclarations trimestrielles, celles-ci doivent être faites le mois suivant chaque trimestre calendaire (avril pour le T1, juillet pour le T2, octobre pour le T3 et janvier pour le T4).
A28: Comment faire votre déclaration (avec les codes produits) ?
A29: La déclaration des mises en marché avec les codes produits se fait par saisie ou chargement d'un fichier* format .csv sur l'Extranet : https://espace-services.eco-mobilier.fr/ *Vous pouvez télécharger le fichier type dans la rubrique Déclarations.
A32: > Pour savoir comment effectuer votre déclaration, consultez le mode opératoire complet : https://espace-services.eco-mobilier.fr/mode-operatoire-declarer

Sheet Périmètre
B1: =MID(CELL("filename",A1),FIND("]",CELL("filename",A1))+1,256) -> Périmètre
B4: ARTICLES DE BRICOLAGE ET DE JARDIN - ABJ | E4: POUR INFORMATION - AGREMENT EN COURS (fin 2027)
B6: Articles de bricolage
B8: 100 | C8: Outillage à main et leurs accessoires
C10: Rayon | D10: Catégorie | E10: Exemples de produits (non-exhaustif)
C11: =$B$6 -> Articles de bricolage | D11: =$C$8 -> Outillage à main et leurs accessoires | E11: abrasifs en feuilles, en roulleaux…)
C12: Articles de bricolage | D12: =$C$8 -> Outillage à main et leurs accessoires | E12: agrafeuse
C13: Articles de bricolage | D13: =$C$8 -> Outillage à main et leurs accessoires | E13: arrache-liteaux
C14: Articles de bricolage | D14: =$C$8 -> Outillage à main et leurs accessoires | E14: bande de ponçage
C15: Articles de bricolage | D15: Outillage à main et leurs accessoires | E15: barre à creuser
C16: Articles de bricolage | D16: Outillage à main et leurs accessoires | E16: barre à mine
C17: Articles de bricolage | D17: Outillage à main et leurs accessoires | E17: bédane
C18: Articles de bricolage | D18: Outillage à main et leurs accessoires | E18: boites et scies a onglets
C19: Articles de bricolage | D19: Outillage à main et leurs accessoires | E19: burin
C20: Articles de bricolage | D20: Outillage à main et leurs accessoires | E20: cale de ponçage
C21: Articles de bricolage | D21: Outillage à main et leurs accessoires | E21: chevillette
C22: Articles de bricolage | D22: =$C$8 -> Outillage à main et leurs accessoires | E22: ciseaux
C23: Articles de bricolage | D23: =$C$8 -> Outillage à main et leurs accessoires | E23: ciseaux à bois
C24: Articles de bricolage | D24: Outillage à main et leurs accessoires | E24: ciseaux à brique
C25: Articles de bricolage | D25: Outillage à main et leurs accessoires | E25: Cle a molette
C26: =$B$6 -> Articles de bricolage | D26: =$C$8 -> Outillage à main et leurs accessoires | E26: clé à pipe
C27: Articles de bricolage | D27: Outillage à main et leurs accessoires | E27: clé diverses
C28: Articles de bricolage | D28: Outillage à main et leurs accessoires | E28: clé dynamométrique
C29: Articles de bricolage | D29: Outillage à main et leurs accessoires | E29: clé mixte
C30: Articles de bricolage | D30: Outillage à main et leurs accessoires | E30: Cle suedoise ou cle serre tube
C31: Articles de bricolage | D31: Outillage à main et leurs accessoires | E31: cliquets
C32: Articles de bricolage | D32: Outillage à main et leurs accessoires | E32: coupe tube
C33: Articles de bricolage | D33: Outillage à main et leurs accessoires | E33: Couteau
C34: Articles de bricolage | D34: Outillage à main et leurs accessoires | E34: couteau à asphalte
C35: Articles de bricolage | D35: Outillage à main et leurs accessoires | E35: couteau à enduire
C36: Articles de bricolage | D36: Outillage à main et leurs accessoires | E36: couteau de bricolage , couteau de poche
C37: Articles de bricolage | D37: Outillage à main et leurs accessoires | E37: cutter
C38: Articles de bricolage | D38: Outillage à main et leurs accessoires | E38: douilles
C39: Articles de bricolage | D39: Outillage à main et leurs accessoires | E39: embouts de vissage
C40: Articles de bricolage | D40: Outillage à main et leurs accessoires | E40: emporte pieces
C41: Articles de bricolage | D41: Outillage à main et leurs accessoires | E41: éponge abrasive
C42: Articles de bricolage | D42: =$C$8 -> Outillage à main et leurs accessoires | E42: Eponge gros travaux
C43: Articles de bricolage | D43: =$C$8 -> Outillage à main et leurs accessoires | E43: equerre (outil)
C44: Articles de bricolage | D44: =$C$8 -> Outillage à main et leurs accessoires | E44: etais
C45: Articles de bricolage | D45: =$C$8 -> Outillage à main et leurs accessoires | E45: etancheur
C46: Articles de bricolage | D46: Outillage à main et leurs accessoires | E46: Extracteur et lisseur de joint
C47: Articles de bricolage | D47: =$C$8 -> Outillage à main et leurs accessoires | E47: fil à plomb
C48: Articles de bricolage | D48: =$C$8 -> Outillage à main et leurs accessoires | E48: grattoirs
C49: Articles de bricolage | D49: =$C$8 -> Outillage à main et leurs accessoires | E49: grattoirs à béton
C50: Articles de bricolage | D50: =$C$8 -> Outillage à main et leurs accessoires | E50: griffe à cintrer
C51: Articles de bricolage | D51: Outillage à main et leurs accessoires | E51: griffe de zingueur
C52: Articles de bricolage | D52: Outillage à main et leurs accessoires | E52: lame
C53: Articles de bricolage | D53: Outillage à main et leurs accessoires | E53: lame de scie
C54: Articles de bricolage | D54: Outillage à main et leurs accessoires | E54: limes et limes de précision
C55: Articles de bricolage | D55: Outillage à main et leurs accessoires | E55: lisseur de joints
C56: Articles de bricolage | D56: Outillage à main et leurs accessoires | E56: Machoire a sertir
C57: Articles de bricolage | D57: Outillage à main et leurs accessoires | E57: maillet
C58: Articles de bricolage | D58: Outillage à main et leurs accessoires | E58: maillet de pavage
C59: Articles de bricolage | D59: Outillage à main et leurs accessoires | E59: marteau
C60: Articles de bricolage | D60: Outillage à main et leurs accessoires | E60: marteau de pavage
C61: Articles de bricolage | D61: Outillage à main et leurs accessoires | E61: masses
C62: Articles de bricolage | D62: =$C$8 -> Outillage à main et leurs accessoires | E62: massette
C63: Articles de bricolage | D63: Outillage à main et leurs accessoires | E63: mesure de précision
C64: Articles de bricolage | D64: Outillage à main et leurs accessoires | E64: Metre
C65: Articles de bricolage | D65: Outillage à main et leurs accessoires | E65: métrologie
C66: Articles de bricolage | D66: Outillage à main et leurs accessoires | E66: niveau à bulle
C67: Articles de bricolage | D67: Outillage à main et leurs accessoires | E67: Niveaux
C68: Articles de bricolage | D68: Outillage à main et leurs accessoires | E68: outillage aep
C69: Articles de bricolage | D69: Outillage à main et leurs accessoires | E69: outillage de fontainerie
C70: Articles de bricolage | D70: Outillage à main et leurs accessoires | E70: outillage d'électricien
C71: Articles de bricolage | D71: Outillage à main et leurs accessoires | E71: outillage du couvreur
C72: Articles de bricolage | D72: Outillage à main et leurs accessoires | E72: outillage du maçon
C73: Articles de bricolage | D73: Outillage à main et leurs accessoires | E73: outillage pour le travail du bois
C74: Articles de bricolage | D74: Outillage à main et leurs accessoires | E74: outillage spécifique du plâtrier-plaquiste
C75: Articles de bricolage | D75: Outillage à main et leurs accessoires | E75: outils de mesure et de traçage
C76: Articles de bricolage | D76: Outillage à main et leurs accessoires | E76: outils du plombier
C77: Articles de bricolage | D77: Outillage à main et leurs accessoires | E77: outils et accessoires du carreleur
C78: Articles de bricolage | D78: Outillage à main et leurs accessoires | E78: outils pour travaux d'étanchéité
C79: Articles de bricolage | D79: Outillage à main et leurs accessoires | E79: ouvre-caisse
C80: Articles de bricolage | D80: Outillage à main et leurs accessoires | E80: pied de biche
C81: Articles de bricolage | D81: Outillage à main et leurs accessoires | E81: Pince
C82: Articles de bricolage | D82: Outillage à main et leurs accessoires | E82: pince à bec
C83: Articles de bricolage | D83: Outillage à main et leurs accessoires | E83: pince à décoffrer
C84: Articles de bricolage | D84: Outillage à main et leurs accessoires | E84: pince à sertir
C85: Articles de bricolage | D85: Outillage à main et leurs accessoires | E85: pince coupe-boulon
C86: Articles de bricolage | D86: Outillage à main et leurs accessoires | E86: pince de carrelleur
C87: Articles de bricolage | D87: Outillage à main et leurs accessoires | E87: pince monseigneur
C88: =$B$6 -> Articles de bricolage | D88: Outillage à main et leurs accessoires | E88: pince rivet
C89: Articles de bricolage | D89: Outillage à main et leurs accessoires | E89: pioche à bec, pioche de terrassement
C90: Articles de bricolage | D90: Outillage à main et leurs accessoires | E90: pioche de terrassement
C91: Articles de bricolage | D91: =$C$8 -> Outillage à main et leurs accessoires | E91: pistolet à cartouche
C92: Articles de bricolage | D92: Outillage à main et leurs accessoires | E92: pistolet à colle
C93: Articles de bricolage | D93: Outillage à main et leurs accessoires | E93: pistolet à poche
C94: Articles de bricolage | D94: Outillage à main et leurs accessoires | E94: pointe à tracer
C95: Articles de bricolage | D95: Outillage à main et leurs accessoires | E95: pointeau
C96: Articles de bricolage | D96: Outillage à main et leurs accessoires | E96: pointerolle
C97: Articles de bricolage | D97: Outillage à main et leurs accessoires | E97: pointes
C98: Articles de bricolage | D98: Outillage à main et leurs accessoires | E98: presses
C99: Articles de bricolage | D99: Outillage à main et leurs accessoires | E99: rabot
C100: Articles de bricolage | D100: Outillage à main et leurs accessoires | E100: rape
C101: Articles de bricolage | D101: Outillage à main et leurs accessoires | E101: Regle de bricolage
C102: Articles de bricolage | D102: Outillage à main et leurs accessoires | E102: règle aluminium
C103: Articles de bricolage | D103: Outillage à main et leurs accessoires | E103: riflard
C104: Articles de bricolage | D104: Outillage à main et leurs accessoires | E104: scie à bois
C105: Articles de bricolage | D105: Outillage à main et leurs accessoires | E105: scie à métaux
C106: =$B$6 -> Articles de bricolage | D106: =$C$8 -> Outillage à main et leurs accessoires | E106: serre-joint
C107: =$B$6 -> Articles de bricolage | D107: =$C$8 -> Outillage à main et leurs accessoires | E107: souflette
C108: Articles de bricolage | D108: Outillage à main et leurs accessoires | E108: taloche
C109: =$B$6 -> Articles de bricolage | D109: =$C$8 -> Outillage à main et leurs accessoires | E109: tamis
C110: =$B$6 -> Articles de bricolage | D110: =$C$8 -> Outillage à main et leurs accessoires | E110: tenaille
C111: =$B$6 -> Articles de bricolage | D111: =$C$8 -> Outillage à main et leurs accessoires | E111: tournevis
C112: Articles de bricolage | D112: Outillage à main et leurs accessoires | E112: traçage et topographie
C113: =$B$6 -> Articles de bricolage | D113: =$C$8 -> Outillage à main et leurs accessoires | E113: treteaux de sciage
C114: Articles de bricolage | D114: Outillage à main et leurs accessoires | E114: Truelle
C115: Articles de bricolage | D115: Outillage à main et leurs accessoires | E115: trusquin
B118: 101 | C118: Gros objets et machines non électriques et non thermiques et leurs accessoires
C120: Rayon | D120: Catégorie | E120: Exemples de produits (non-exhaustif)
C121: =$B$6 -> Articles de bricolage | D121: =$C$118 -> Gros objets et machines non électriques et non thermiques et leurs accessoires | E121: boites encastrement pour appareillage et accessoires
C122: Articles de bricolage | D122: Gros objets et machines non électriques et non thermiques et leurs accessoires | E122: chariot de manutention
C123: Articles de bricolage | D123: Gros objets et machines non électriques et non thermiques et leurs accessoires | E123: Coupe carreaux
C124: Articles de bricolage | D124: Gros objets et machines non électriques et non thermiques et leurs accessoires | E124: coupe carreaux manuel
C125: Articles de bricolage | D125: Gros objets et machines non électriques et non thermiques et leurs accessoires | E125: enclumes
C126: =$B$6 -> Articles de bricolage | D126: =$C$118 -> Gros objets et machines non électriques et non thermiques et leurs accessoires | E126: etaux
C127: =$B$6 -> Articles de bricolage | D127: =$C$118 -> Gros objets et machines non électriques et non thermiques et leurs accessoires | E127: extracteur
C128: Articles de bricolage | D128: Gros objets et machines non électriques et non thermiques et leurs accessoires | E128: leviers de force
C129: Articles de bricolage | D129: Gros objets et machines non électriques et non thermiques et leurs accessoires | E129: lissarde à béton
C130: Articles de bricolage | D130: Gros objets et machines non électriques et non thermiques et leurs accessoires | E130: marteau burineur
C131: Articles de bricolage | D131: Gros objets et machines non électriques et non thermiques et leurs accessoires | E131: mesure longue
C132: Articles de bricolage | D132: Gros objets et machines non électriques et non thermiques et leurs accessoires | E132: mire
C133: Articles de bricolage | D133: Gros objets et machines non électriques et non thermiques et leurs accessoires | E133: nivelle pour mire
C134: Articles de bricolage | D134: Gros objets et machines non électriques et non thermiques et leurs accessoires | E134: outillage de serrage et découpage
C135: Articles de bricolage | D135: Gros objets et machines non électriques et non thermiques et leurs accessoires | E135: outillage lourd de carreleur
C136: Articles de bricolage | D136: Gros objets et machines non électriques et non thermiques et leurs accessoires | E136: outillage pour tuyauterie
C137: Articles de bricolage | D137: Gros objets et machines non électriques et non thermiques et leurs accessoires | E137: outils de terrassement
C138: Articles de bricolage | D138: Gros objets et machines non électriques et non thermiques et leurs accessoires | E138: outils pneumatiques
C139: Articles de bricolage | D139: Gros objets et machines non électriques et non thermiques et leurs accessoires | E139: Pistolet à clou (hors EEE)
C140: =$B$6 -> Articles de bricolage | D140: =$C$118 -> Gros objets et machines non électriques et non thermiques et leurs accessoires | E140: racleur pehd
C141: Articles de bricolage | D141: Gros objets et machines non électriques et non thermiques et leurs accessoires | E141: règle à niveau
B144: 102 | C144: Outils et supports de travail en hauteur
C146: Rayon | D146: Catégorie | E146: Exemples de produits (non-exhaustif)
C147: =$B$6 -> Articles de bricolage | D147: =$C$144 -> Outils et supports de travail en hauteur | E147: accessoires de levage
C148: Articles de bricolage | D148: Outils et supports de travail en hauteur | E148: accessoires de manutention
C149: Articles de bricolage | D149: Outils et supports de travail en hauteur | E149: anneau de levage
C150: Articles de bricolage | D150: Outils et supports de travail en hauteur | E150: crochet de levage
C151: Articles de bricolage | D151: Outils et supports de travail en hauteur | E151: échafaudages et structures tubulaires
C152: Articles de bricolage | D152: Outils et supports de travail en hauteur | E152: échafaudages mobiles
C153: =$B$6 -> Articles de bricolage | D153: =$C$144 -> Outils et supports de travail en hauteur | E153: Echelle
C154: =$B$6 -> Articles de bricolage | D154: =$C$144 -> Outils et supports de travail en hauteur | E154: echelle coulissante
C155: =$B$6 -> Articles de bricolage | D155: =$C$144 -> Outils et supports de travail en hauteur | E155: echelle simple
C156: Articles de bricolage | D156: Outils et supports de travail en hauteur | E156: echelle transformable
C157: Articles de bricolage | D157: Outils et supports de travail en hauteur | E157: échelles téléscopiques
C158: Articles de bricolage | D158: Outils et supports de travail en hauteur | E158: échelles pour chantiers
C159: Articles de bricolage | D159: Outils et supports de travail en hauteur | E159: Escabeau
C160: Articles de bricolage | D160: Outils et supports de travail en hauteur | E160: marche pied, marchepied
C161: Articles de bricolage | D161: Outils et supports de travail en hauteur | E161: Marche pieds
C162: Articles de bricolage | D162: Outils et supports de travail en hauteur | E162: tables élévatrices
C163: Articles de bricolage | D163: Outils et supports de travail en hauteur | E163: treuil
B166: 103 | C166: Equipement personnel et accessoires de protection de bricolage
C168: Rayon | D168: Catégorie | E168: Exemples de produits (non-exhaustif)
C169: =$B$6 -> Articles de bricolage | D169: =$C$166 -> Equipement personnel et accessoires de protection de bricolage | E169: bouchons anti-bruit
C170: Articles de bricolage | D170: =$C$166 -> Equipement personnel et accessoires de protection de bricolage | E170: cartouches pour masques
C171: Articles de bricolage | D171: Equipement personnel et accessoires de protection de bricolage | E171: casque de soudeur
C172: Articles de bricolage | D172: Equipement personnel et accessoires de protection de bricolage | E172: casques de chantier
C173: =$B$6 -> Articles de bricolage | D173: =$C$166 -> Equipement personnel et accessoires de protection de bricolage | E173: Casque de protection
C174: Articles de bricolage | D174: Equipement personnel et accessoires de protection de bricolage | E174: chaussure de protection (ISO 20346 et 20345 : SB, SBP, S1, S1P, S2 et S3)
C175: Articles de bricolage | D175: Equipement personnel et accessoires de protection de bricolage | E175: equipement du corps (visière, genouillère, jambière…)
C176: Articles de bricolage | D176: Equipement personnel et accessoires de protection de bricolage | E176: gants de protection pour le bricolage
C177: Articles de bricolage | D177: Equipement personnel et accessoires de protection de bricolage | E177: Lunettes de protection
C178: Articles de bricolage | D178: Equipement personnel et accessoires de protection de bricolage | E178: masques
C179: Articles de bricolage | D179: Equipement personnel et accessoires de protection de bricolage | E179: protection auditive
C180: Articles de bricolage | D180: Equipement personnel et accessoires de protection de bricolage | E180: protection des yeux
C181: Articles de bricolage | D181: Equipement personnel et accessoires de protection de bricolage | E181: Protection voies respiratoires
B183: 104 | C183: Bâches, housses, filets et films de bricolage
C185: Rayon | D185: Catégorie | E185: Exemples de produits (non-exhaustif)
C186: =B6 -> Articles de bricolage | D186: =$C$183 -> Bâches, housses, filets et films de bricolage | E186: bâche de bricolage
H188: =TRIM((LOWER(E188))) -> 
H189: =TRIM((LOWER(E189))) -> 
H190: =TRIM((LOWER(E190))) -> 
B191: Entretien et aménagement du jardin | H191: =TRIM((LOWER(E191))) -> 
H192: =TRIM((LOWER(E192))) -> 
B193: 150 | C193: Outils à main d’entretien du jardin et petits accessoires
C195: Rayon | D195: Catégorie | E195: Exemples de produits (non-exhaustif)
C196: =$B$191 -> Entretien et aménagement du jardin | D196: =$C$193 -> Outils à main d’entretien du jardin et petits accessoires | E196: accessoires de culture
C197: Entretien et aménagement du jardin | D197: Outils à main d’entretien du jardin et petits accessoires | E197: arrosage goutte à goutte
C198: Entretien et aménagement du jardin | D198: Outils à main d’entretien du jardin et petits accessoires | E198: arroseur
C199: Entretien et aménagement du jardin | D199: Outils à main d’entretien du jardin et petits accessoires | E199: Arrosoir
C200: Entretien et aménagement du jardin | D200: Outils à main d’entretien du jardin et petits accessoires | E200: autres grands outils de jardin
C201: Entretien et aménagement du jardin | D201: Outils à main d’entretien du jardin et petits accessoires | E201: balai à gazon
C202: Entretien et aménagement du jardin | D202: Outils à main d’entretien du jardin et petits accessoires | E202: Balai de jardin
C203: Entretien et aménagement du jardin | D203: Outils à main d’entretien du jardin et petits accessoires | E203: Beche
C204: Entretien et aménagement du jardin | D204: Outils à main d’entretien du jardin et petits accessoires | E204: bisaigue
C205: Entretien et aménagement du jardin | D205: Outils à main d’entretien du jardin et petits accessoires | E205: Brosse
C206: =$B$191 -> Entretien et aménagement du jardin | D206: =$C$193 -> Outils à main d’entretien du jardin et petits accessoires | E206: bucheronnage
C207: Entretien et aménagement du jardin | D207: Outils à main d’entretien du jardin et petits accessoires | E207: buse
C208: Entretien et aménagement du jardin | D208: Outils à main d’entretien du jardin et petits accessoires | E208: Cisaille
C209: Entretien et aménagement du jardin | D209: Outils à main d’entretien du jardin et petits accessoires | E209: cognée
C210: Entretien et aménagement du jardin | D210: Outils à main d’entretien du jardin et petits accessoires | E210: coin éclateur
C211: Entretien et aménagement du jardin | D211: Outils à main d’entretien du jardin et petits accessoires | E211: composteur
C212: Entretien et aménagement du jardin | D212: Outils à main d’entretien du jardin et petits accessoires | E212: Coupe branche
C213: Entretien et aménagement du jardin | D213: Outils à main d’entretien du jardin et petits accessoires | E213: coupe-bordure
C214: Entretien et aménagement du jardin | D214: Outils à main d’entretien du jardin et petits accessoires | E214: cueille fruits
C215: Entretien et aménagement du jardin | D215: Outils à main d’entretien du jardin et petits accessoires | E215: Devidoir enrouleur
C216: Entretien et aménagement du jardin | D216: Outils à main d’entretien du jardin et petits accessoires | E216: divers arrosage et pulvérisation
C217: Entretien et aménagement du jardin | D217: Outils à main d’entretien du jardin et petits accessoires | E217: enrouleurs de tuyau d'arrosage
C218: Entretien et aménagement du jardin | D218: Outils à main d’entretien du jardin et petits accessoires | E218: epuisette
... 158 more rows

Sheet Comprendre la codification
B1: Système de codification ecomaison
B4: ► Un outil de création de tables de correspondance entre votre catalogue et le catalogue produit ecomaison est disponible
B5: ► Les codifications DEA ne sont pas représentées ci-dessous
B8: Structure générale du code
B20: Code Rayon : XX 000 00 000 0
B22: REP | C22: _ | D22: Rayon | E22: _2 | F22: Code Rayon
B24: Articles Bricolage et Jardin - ABJ | D24: Articles de bricolage | F24: 21
B25: Articles Bricolage et Jardin - ABJ | D25: Entretien et aménagement du jardin | F25: 22
B27: Code Catégorie Produit : 00 XXX 00 000 0
B29: REP | C29: _ | D29: Rayon | E29: Catégorie | F29: Code Produit
B31: ABJ | D31: =$D$24 -> Articles de bricolage | E31: Outillage à main et leurs accessoires | F31: 100
B33: ABJ | D33: =$D$24 -> Articles de bricolage | E33: Gros objets et machines non électriques et non thermiques et leurs accessoires | F33: =F31+1 -> 101
B34: ABJ | D34: Articles de bricolage | E34: Outils et supports de travail en hauteur | F34: =F33+1 -> 102
B35: ABJ | D35: Articles de bricolage | E35: Equipement personnel et accessoires de protection de bricolage | F35: 103
B36: ABJ | D36: Articles de bricolage | E36: Bâches, housses, filets et films de bricolage | F36: 104
B37: ABJ | D37: Articles de bricolage | E37: Seaux, auges et contenants | F37: =IF(D37=D36,F36+1,ROUNDUP((F36+1)*2,-1)/2) -> 105
B38: ABJ | D38: =$D$25 -> Entretien et aménagement du jardin | E38: Outils à main d’entretien du jardin et petits accessoires | F38: 150
B39: ABJ | D39: =$D$25 -> Entretien et aménagement du jardin | E39: Equipement personnel et accessoires de protection de jardinage | F39: =F38+1 -> 151
B40: ABJ | D40: =$D$25 -> Entretien et aménagement du jardin | E40: Pots de fleur et contenants | F40: =F39+1 -> 152
B41: ABJ | D41: Entretien et aménagement du jardin | E41: Bâches, housses, filets et films de jardinage | F41: 153
B42: ABJ | D42: Entretien et aménagement du jardin | E42: Equipements de plein air et leurs accessoires (hors bâches, filets, housses) | F42: 154
B43: ABJ | D43: Entretien et aménagement du jardin | E43: Structures extérieures non-maçonnées | F43: 155
B45: Code Matériaux : 00 000 XX 000 0
B47: Type de matériaux | C47: _ | D47: Matériaux | E47: Exemples de matériaux | F47: Code matériaux | G47: Colonne1
B49: 1 - Métal | D49: Métal >90% | E49: Ferreux (Acier, Acier inoxydable, Fer forgé, Fonte, Acier au carbone, acier zingué, tole, alliages…) et non-ferreux (Aluminium, plomb, zinc, étain, chrome, cuivre, bronze, argent, zamac, nickel, titane, laiton...) | F49: 28
B50: 1 - Métal | D50: Assemblage avec métal >50% et autres matériaux | E50: Assemblage métal-bois, métal-plastique, métal-inertes … | F50: 02
B52: 2 - Bois et dérivés de bois | D52: Massif et assimilés certifiés >90% | E52: Toutes essences (douglas, sapin, chène, hêtre, pin maritime, pin sylvestre, moabi , mélèze, teak, épicea ...), dont contreplaqué, contrecollé, lamellé, plaqué | F52: 52
B53: 2 - Bois et dérivés de bois | D53: Massif et assimilés certifiés >75% | E53: Toutes essences (douglas, sapin, chène, hêtre, pin maritime, pin sylvestre, moabi , mélèze, teak, épicea ...), dont contreplaqué, contrecollé, lamellé, plaqué | F53: 20
B54: 2 - Bois et dérivés de bois | D54: Massif et assimilés >90% | E54: Toutes essences (douglas, sapin, chène, hêtre, pin maritime, pin sylvestre, moabi , mélèze, teak, épicea ...), dont contreplaqué, contrecollé, lamellé, plaqué | F54: 53
B55: 2 - Bois et dérivés de bois | D55: Massif et assimilés >75% | E55: Toutes essences (douglas, sapin, chène, hêtre, pin maritime, pin sylvestre, moabi , mélèze, teak, épicea ...), dont contreplaqué, contrecollé, lamellé, plaqué | F55: 21
B56: 2 - Bois et dérivés de bois | D56: Panneaux de particules ou OSB certifiés >90% | E56: Panneaux de particules, OSB | F56: 59
B57: 2 - Bois et dérivés de bois | D57: Panneaux de particules ou OSB certifiés >75% | E57: Panneaux de particules, OSB | F57: 60
B58: 2 - Bois et dérivés de bois | D58: Panneaux de particules ou OSB >90% | E58: Panneaux de particules, OSB | F58: 61
B59: 2 - Bois et dérivés de bois | D59: Panneaux de particules ou OSB >75% | E59: Panneaux de particules, OSB | F59: 25
B60: 2 - Bois et dérivés de bois | D60: Dérivés de bois >90% | E60: Bois composite, MDF, HDF, alvéolaire, stratifé, HPL…. | F60: 62
B61: 2 - Bois et dérivés de bois | D61: Assemblage de bois, dérivés de bois à plus de 50% avec d'autres matériaux ou bois composite (hors verre) | E61: Assemblage bois-métal, bois-plastique … | F61: 01
B63: 3 - Papier carton | D63: Papier carton >50% avec d'autres matériaux (hors verre) | E63: Papier, Carton, Compact, Papier Kraft | F63: 19
B65: 4 - Matériaux et fibres d'origine végétal ou animal autres que bois et papier, carton | D65: Matériaux bio sourcés ou textiles non synthétiques >90% | E65: Tiges végétales (bambou, rotin, osiers, jute, paille, liège), textiles naturels d'origine végétale non mélangés (coton, lin, chanvre, soie, ramie, fibres de noix de coco, rafia…) | F65: 55
B66: 4 - Matériaux et fibres d'origine végétal ou animal autres que bois et papier, carton | D66: Matériaux bio sourcés ou textiles non synthétiques >50% | E66: Assemblage de matériaux bio sourcés avec du plastique, du métal … | F66: 04
B67: 4 - Matériaux et fibres d'origine végétal ou animal autres que bois et papier, carton | D67: Caoutchouc naturel >90% | E67: Caoutchouc, latex | F67: 63
B68: 4 - Matériaux et fibres d'origine végétal ou animal autres que bois et papier, carton | D68: Caoutchouc naturel >50% | E68: Caoutchouc, latex | F68: 64
B69: 4 - Matériaux et fibres d'origine végétal ou animal autres que bois et papier, carton | D69: Matériaux d'origine animale >50% | E69: Matières textiles ou rembourrages d'origine animale (laine, feutre, mohair, plumes, duvets, poils, cuirs...) | F69: 06
B71: 5 - Plastique, matériaux et fibres synthétiques | D71: Plastiques (mono résine) >90% | E71: Plastiques et autres matériaux synthétiques : acrylique, PP, PE, PS, XPS, EPS, PER, Nylon, Polyamide, PU, PVC, vinyle, époxy, fibres synthétiques, PL, matériaux composites, carbone…. | F71: 41
B72: 5 - Plastique, matériaux et fibres synthétiques | D72: PE ou PP ou mélange PP/PE >90% | E72: Polyéthylène (PE), Polypropylène (PP), mélange PP/PE | F72: 45
B73: 5 - Plastique, matériaux et fibres synthétiques | D73: PVC >90% | F73: 48
B74: 5 - Plastique, matériaux et fibres synthétiques | D74: Polyterephtalate d'Ethylène (PET) >90% | F74: 42
B75: 5 - Plastique, matériaux et fibres synthétiques | D75: ABS >90% | F75: 46
B76: 5 - Plastique, matériaux et fibres synthétiques | D76: Polystyrène >90% | F76: 47
B77: 5 - Plastique, matériaux et fibres synthétiques | D77: Plastiques ou autres matériaux synthétiques >50% | E77: Assemblage de matériaux et textiles synthétiques, ensemble | F77: 05
B78: 5 - Plastique, matériaux et fibres synthétiques | D78: Caoutchouc synthétique >90% | E78: Caoutchouc | F78: 49
B79: 5 - Plastique, matériaux et fibres synthétiques | D79: Eléments contenant du latex | E79: Latex | F79: 10
B80: 5 - Plastique, matériaux et fibres synthétiques | D80: Assemblage caoutchouc synthétique ou latex >50% avec d'autres matériaux | E80: Caoutchouc, latex avec d'autres matériaux synthétiques, du bois, du métal … | F80: 40
B81: 5 - Plastique, matériaux et fibres synthétiques | D81: Matériaux ou fibres synthétiques >90% | E81: Polyamides, nylon, polyester (PES) et polyterephtalate d'Ethylène (PET), viscose, polyester, élastane, mousses … | F81: 65
B82: 5 - Plastique, matériaux et fibres synthétiques | D82: Textile et rembourrage en polyester >90% | E82: Polyester | F82: 66
B83: 5 - Plastique, matériaux et fibres synthétiques | D83: Eléments contenant de la mousse | F83: 09
B84: 5 - Plastique, matériaux et fibres synthétiques | D84: Eléments textiles contenant des ressorts | F84: 11
B85: 5 - Plastique, matériaux et fibres synthétiques | D85: Assemblage matériaux ou fibres synthétiques >50% avec d'autres matériaux | E85: Assemblage de matériaux et textiles synthétiques avec du métal, du bois … | F85: 67
B87: 6 - Verre et parois vitrées | D87: Verre >90% | E87: Verre plat, brique de verre … | F87: 68
B88: 6 - Verre et parois vitrées | D88: Assemblage verre à plus de 50% avec métal | E88: Assemblage de verre avec des métaux | F88: 70
B89: 6 - Verre et parois vitrées | D89: Assemblage verre à plus de 50% avec Inerte | E89: Assemblage de verre avec de l'inerte | F89: 71
B90: 6 - Verre et parois vitrées | D90: Assemblage verre à plus de 50% avec bois ou dérivés de bois | E90: Assemblage de verre avec du bois ou des matériaux biosourcés | F90: 72
B91: 6 - Verre et parois vitrées | D91: Assemblage verre à plus de 50% avec plastique | E91: Assemblage de verre avec du plastique | F91: 73
B92: 6 - Verre et parois vitrées | D92: Miroir >90% | E92: Miroir | F92: 69
B94: 7 - Plâtre | D94: Plâtre >90% | E94: Matière en plâtre, plaque de plâtre (placo) et fibre gypse | F94: 75
B95: 7 - Plâtre | D95: Plâtre >50% | E95: Elément composé majoritaitement de plâtre et associé à d'autres matériaux | F95: 76
B97: 8- Laines de verre et laines de roches | D97: Laines de roche à plus de 90 % | E97: Matière isolante fabriquée à partir d'un matériau naturel issu de l'activité volcanique | F97: 77
B98: 8- Laines de verre et laines de roches | D98: Laine de verre à plus de 90 % | E98: Matière composée de fils de verre, utilisé comme filtrant ou isolant | F98: 78
B99: 8- Laines de verre et laines de roches | D99: Assemblage de laines de verre ou laines de roches à plus de 50% et d'autres matériaux | E99: Elément composé majoritaitement de laine minérale | F99: 79
B101: 9 - Membranes bitumineuses | D101: Membranes bitumineuses à plus de 90 % | E101: Membrane d'étanchéité synthétique | F101: 80
B103: 10 - Autres mix matériaux ou matériaux non classés ou non spécifiés | D103: Assemblage dont la composition conjointe en bois, dérivés de bois et en métal dépasse 90% | F103: 81
B104: 10 - Autres mix matériaux ou matériaux non classés ou non spécifiés | D104: Assemblage de 3 matériaux ou plus sans un matériau à plus de 50% | E104: Elément composé de parties en matériaux divers avec souvent mais non exclusivement une partie de plastique ou de textile synthétique | F104: 82
B105: 10 - Autres mix matériaux ou matériaux non classés ou non spécifiés | D105: Non connu ou non spécifié par l'entreprise | E105: Non connu ou non spécifié par l'entreprise | F105: 00
B107: 11 - Mortiers, enduits, peintures, vernis, résines, produits de préparation | D107: Produits liquides, y.c. dangereux >90% | E107: Sous couches, préparation des sols et étanchéité, Peintures extérieures, Traitement des sols et toitures, Peintures intérieures, Colles et adhésifs, Résines PU et expansive (aérosol), Mastics, joints et mousses PU, Adjuvants, Traitement des bois, Traitement des matériaux (aérosol), Traitement des matériaux hors bois, Vernis et vitrificateurs et dérivés, Vernis et vitrificateurs et dérivés (aérosols), Enduits poudre, Enduits pate | F107: 83
B109: 12 - Matériaux inertes | D109: Assemblage de matériaux avec de l'inerte >50% | F109: 08
B110: 12 - Matériaux inertes | D110: Composites et autres matériaux minéraux reconstitués >50% | F110: 15
B111: 12 - Matériaux inertes | D111: Ardoise >90% | E111: Ardoise | F111: 84
B112: 12 - Matériaux inertes | D112: Granulats hors pierre >90% | E112: Matière minérale de petite taille (granulats, gravillons, sable, grave, gravier, moellon, concassé, …) hors pierre | F112: 85
B113: 12 - Matériaux inertes | D113: Pierre calcaire >90% | E113: Matière minérale de grosse taille, hors granulats, gravillons, sable et hors pierres spécifiques comme l'ardoise | F113: 86
B114: 12 - Matériaux inertes | D114: Lave >90% | F114: 87
B115: 12 - Matériaux inertes | D115: Mélange bitumineux >90% | E115: Matière liquide à base de bitume | F115: 88
B116: 12 - Matériaux inertes | D116: Terre cuite ou crue >90% | E116: Matière terre cuite | F116: 89
B117: 12 - Matériaux inertes | D117: Béton >90% | E117: Assemblage de granulats (graviers, gravillons, sables, etc.), d'un liant (ciment, bitume, argile) d'adjuvants et d'eau | F117: 74
B118: 12 - Matériaux inertes | D118: Béton cellulaire >90% | F118: 96
B119: 12 - Matériaux inertes | D119: Ciment >90% | F119: 90
B120: 12 - Matériaux inertes | D120: Granit >90% | F120: 91
B121: 12 - Matériaux inertes | D121: Céramique >90% | E121: Matière à base de faïence ou grès | F121: 97
B122: 12 - Matériaux inertes | D122: Mortier >90% | F122: 92
B123: 12 - Matériaux inertes | D123: Adjuvants >90% | F123: 93
B124: 12 - Matériaux inertes | D124: Grès >90% | F124: 94
B125: 12 - Matériaux inertes | D125: Chaux >90% | F125: 95
B126: 12 - Matériaux inertes | D126: Pierre artificielle >90% | E126: Matériau obtenu par moulage d'agrégats divers, charges et liants (béton, pierre reconstituée) ou par synthèse chimique | F126: 98
B129: Code Mesure : 00 000 00 XXX 0
B131: Type de mesure | C131: concat | D131: Mode de calcul | E131: Périmètres produits d'application | F131: Code Mesure
C132: =[2]!Tbl_Code_Mesure[[#This Row],[Mode de calcul]]&[2]!Tbl_Code_Mesure[[#This Row],[Périmètres produits d''application]] -> 
B133: Général | C133: =[2]!Tbl_Code_Mesure[[#This Row],[Mode de calcul]]&[2]!Tbl_Code_Mesure[[#This Row],[Périmètres produits d''application]] ->  | D133: € / Tonne | E133: Eléments de toutes dimensions et poids | F133: 000
B134: Général | C134: =[2]!Tbl_Code_Mesure[[#This Row],[Mode de calcul]]&[2]!Tbl_Code_Mesure[[#This Row],[Périmètres produits d''application]] ->  | D134: € / Unité | E134: Inférieur strictement à 0,5 kg | F134: 020
B135: Général | C135: =[2]!Tbl_Code_Mesure[[#This Row],[Mode de calcul]]&[2]!Tbl_Code_Mesure[[#This Row],[Périmètres produits d''application]] -> € / TonneEléments de toutes dimensions et poids | D135: € / Unité | E135: Compris entre 0,5 kg et 1 kg exclus | F135: 021
B136: Général | C136: =[2]!Tbl_Code_Mesure[[#This Row],[Mode de calcul]]&[2]!Tbl_Code_Mesure[[#This Row],[Périmètres produits d''application]] -> € / UnitéInférieur strictement à 0,5 kg | D136: € / Unité | E136: Compris entre 1 kg et 2 kg exclus | F136: 022
B137: Général | C137: =[2]!Tbl_Code_Mesure[[#This Row],[Mode de calcul]]&[2]!Tbl_Code_Mesure[[#This Row],[Périmètres produits d''application]] -> € / UnitéCompris entre 0,5 kg et 1 kg exclus | D137: € / Unité | E137: Compris entre 2 kg et 3 kg exclus | F137: 052
B138: Général | C138: =[2]!Tbl_Code_Mesure[[#This Row],[Mode de calcul]]&[2]!Tbl_Code_Mesure[[#This Row],[Périmètres produits d''application]] -> € / UnitéCompris entre 1 kg et 2 kg exclus | D138: € / Unité | E138: Compris entre 3 kg et 5 kg exclus | F138: 053
B139: Général | C139: =[2]!Tbl_Code_Mesure[[#This Row],[Mode de calcul]]&[2]!Tbl_Code_Mesure[[#This Row],[Périmètres produits d''application]] -> € / UnitéCompris entre 2 kg et 3 kg exclus | D139: € / Unité | E139: Compris entre 5 kg et 7 kg exclus | F139: 054
B140: Général | C140: =[2]!Tbl_Code_Mesure[[#This Row],[Mode de calcul]]&[2]!Tbl_Code_Mesure[[#This Row],[Périmètres produits d''application]] -> € / UnitéCompris entre 3 kg et 5 kg exclus | D140: € / Unité | E140: Compris entre 7 kg et 10 kg exclus | F140: 055
B141: Général | C141: =[2]!Tbl_Code_Mesure[[#This Row],[Mode de calcul]]&[2]!Tbl_Code_Mesure[[#This Row],[Périmètres produits d''application]] -> € / UnitéCompris entre 5 kg et 7 kg exclus | D141: € / Unité | E141: Compris entre 10 kg et 15 kg exclus | F141: 056
B142: Général | C142: =[2]!Tbl_Code_Mesure[[#This Row],[Mode de calcul]]&[2]!Tbl_Code_Mesure[[#This Row],[Périmètres produits d''application]] -> € / UnitéCompris entre 7 kg et 10 kg exclus | D142: € / Unité | E142: Compris entre 15 kg et 20 kg exclus | F142: 057
B143: Général | C143: =[2]!Tbl_Code_Mesure[[#This Row],[Mode de calcul]]&[2]!Tbl_Code_Mesure[[#This Row],[Périmètres produits d''application]] -> € / UnitéCompris entre 10 kg et 15 kg exclus | D143: € / Unité | E143: Compris entre 20 kg et 25 kg exclus | F143: 058
B144: Général | C144: =[2]!Tbl_Code_Mesure[[#This Row],[Mode de calcul]]&[2]!Tbl_Code_Mesure[[#This Row],[Périmètres produits d''application]] -> € / UnitéCompris entre 15 kg et 20 kg exclus | D144: € / Unité | E144: Compris entre 25 kg et 30 kg exclus | F144: 059
B145: Général | C145: =[2]!Tbl_Code_Mesure[[#This Row],[Mode de calcul]]&[2]!Tbl_Code_Mesure[[#This Row],[Périmètres produits d''application]] -> € / UnitéCompris entre 20 kg et 25 kg exclus | D145: € / Unité | E145: Compris entre 30 kg et 40 kg exclus | F145: 027
B146: Général | C146: =[2]!Tbl_Code_Mesure[[#This Row],[Mode de calcul]]&[2]!Tbl_Code_Mesure[[#This Row],[Périmètres produits d''application]] -> € / UnitéCompris entre 25 kg et 30 kg exclus | D146: € / Unité | E146: Compris entre 40 kg et 50 kg exclus | F146: 060
B147: Général | C147: =[2]!Tbl_Code_Mesure[[#This Row],[Mode de calcul]]&[2]!Tbl_Code_Mesure[[#This Row],[Périmètres produits d''application]] -> € / UnitéCompris entre 30 kg et 40 kg exclus | D147: € / Lot de 10 | E147: Lot de 10 unités | F147: 090
B148: Général | C148: =[2]!Tbl_Code_Mesure[[#This Row],[Mode de calcul]]&[2]!Tbl_Code_Mesure[[#This Row],[Périmètres produits d''application]] -> € / UnitéCompris entre 40 kg et 50 kg exclus | D148: € / Unité | E148: Codes petits producteurs | F148: 089

Sheet ABJ - Code produit
A1: Générateur de code produit - ABJ | H1: MASQUER | I1: MASQUER | K1: =Infos!$A$7 -> Version 1.9 - 05 novembre 2024
A2: Sélectionner les éléments dans les cases vertes Penser à actionner le bouton "RESET" avant de faire une nouvelle génération. Le montant TTC de l’éco-participation est donné à titre indicatif ; le barème applicable est le barème HT.
G4: Code: | I4: A
A6: 1 - Choisissez un rayon : | G6: =IF(D6="","",VLOOKUP(D6,'Param masqué'!$D$3:$E$4,2,FALSE)) ->  | H6: =LEFT(A6,1)+0 -> 1 | I6: =I4&"_"&G6 -> A_
A8: =H6+1&" - Choisissez une catégorie de produit : " -> 2 - Choisissez une catégorie de produit : | E8: _ | G8: =IF(D8="","",VLOOKUP(D8,'Param masqué'!$J$3:$K$15,2,FALSE)) ->  | H8: =LEFT(A8,1)+0 -> 2 | I8: =I4&"_"&G8 -> A_
D10: =IF($G$8=155,"Attention, ce produit relève peut-être d'une autre filière REP. Pensez à bien vérifier son appartenance à la REP ABJ","") -> 
A12: =H8+1&" - Choisissez votre famille de matériaux :" -> 3 - Choisissez votre famille de matériaux : | H12: =LEFT(A12,1)+0 -> 3 | I12: =IFERROR(VLOOKUP($D$12,'Param masqué'!$AT$2:$AU$13,2,FALSE),0) -> 0
I13: =IF(D12="Prix en fonction d'une autre unité fonctionelle",I8&"F","") -> 
A14: =H12+1&" - Choisissez un matériau : " -> 4 - Choisissez un matériau : | G14: =IF(D14="","",VLOOKUP(D14,'Param masqué'!$R$3:$T$79,3,FALSE)) ->  | H14: =LEFT(A14,1)+0 -> 4 | I14: =IF($D$12="Prix en fonction d'une autre unité fonctionelle",VLOOKUP(I13,'Param masqué'!AG:AJ,4,FALSE),VLOOKUP(I8,'Param masqué'!AG:AJ,4,FALSE)) -> 
A16: =H14+1&" - Choisissez la caractéristique (ou conditionnement) en fonction du type de produit : " -> 5 - Choisissez la caractéristique (ou conditionnement) en fonction du type de produit : | G16: =IF(D16="","",VLOOKUP(D16,'Param masqué'!$AD$1:$AE$16,2,FALSE)) ->  | H16: =LEFT(A16,1)+0 -> 5
A19: =H16+1&" - Le produit bénéficie-t-il d'une éco-modulation ? " -> 6 - Le produit bénéficie-t-il d'une éco-modulation ? | G19: =IF(D19="","",IF(D19="oui",1,0)) -> 
D20: =IF($G$19=1,"Attention, pensez à bien vérifier l'éligibilité de ce produit aux éco-modulations","") -> 
A22: D'où le code produit: | D22: =IF(OR(D19="",D16="",D14="",D8="",D6=""),"",CONCATENATE(G6,G8,G14,G16,G19)) -> 
D23: =IF(D22="","",D6&" - "&D8&" en "&D14&" "&D16) -> 
A24: =IF(D12="forfait","Le montant de l'éco-participation (€/conditionnement retenu)","Le montant de l'éco-participation (€/T) est :") -> Le montant de l'éco-participation (€/T) est :
G25: et son code éco-participation associé:
A26: Vous pouvez le paramétrer le taux de TVA | C26: HT : | D26: =IFERROR(VLOOKUP('ABJ - Code produit'!$D$22,Codes!$C:$J,8,FALSE),"") ->  | F26: =IFERROR(VLOOKUP('ABJ - Code produit'!$D$22,Codes!$C:$J,7,FALSE),"") ->  | G26: =IFERROR(VLOOKUP(D22,Codes!$C:$L,10,FALSE),"") -> 
B27: 0.2 | C27: TTC : | D27: =IF(D26="","",D26*(1+$B$27)) ->  | F27: =IFERROR(VLOOKUP('ABJ - Code produit'!$D$22,Codes!$C:$J,7,FALSE),"") -> 
D29: =IF($G$19=1,IF(D26<0.1,"La prime correspondante sera indiquée dans l’espace service après déclaration et validation de vos preuves.","Ce produit bénéficierait, sous réserve de validation, d'une écomodulation de "&ROUND(D26*10%,2)&F26&". Cette prime sera affichée sur votre espace adhérent."),"") -> 
A31: =IF(F26="€ / Tonne","Indiquez ici le poids de votre produit en kg :","") -> 
C33: =IF(F26="€ / Tonne","soit une éco-participation unitaire de :","") ->  | D33: =IFERROR(IF(D31="","",IF(F26="€ / Tonne",IF(D31*D26/1000<0.01,"<0,01€",D31*D26/1000),D31*D26)),"") ->  | F33: =IF(F26="€ / Tonne","HT hors éco-modulation si applicable","") -> 

Sheet Param masqué (hidden)
B1: REP | C1: _ | D1: Rayon | E1: Code Rayon | G1: REP | H1: _ | I1: Rayon | J1: Catégorie | K1: Code Produit | Q1: Type de matériaux | R1: Matériaux | S1: Exemples de matériaux | T1: Code matériaux | W1: A_100 | AB1: Type de mesure | AC1: Mode de calcul | AD1: Périmètres produits d'application | AE1: Code Mesure | AG1: code produit | AH1: Tranches de dimensions | AI1: unité | AJ1: meta cat | AN1: Typo | AO1: Tranches de dimensions | AP1: Code | AY1: Cat1
W2: 1 - Métal | X2: =VLOOKUP(W2,$AT$2:$AU$13,2,FALSE) -> Cat_1 | AF2: 100 | AG2: A_100 | AH2: Eléments de toutes dimensions et poids | AI2: € / Tonne | AJ2: Dim_2 | AN2: Dim_1 | AO2: Eléments de toutes dimensions et poids (T) | AP2: 000 | AT2: 1 - Métal | AU2: Cat_1 | AV2: 1 | AX2: 28 | AY2: Métal >90% | AZ2: =VLOOKUP(AY2,'Comprendre la codification'!$D$49:$F$126,3,FALSE) -> 28 | BB2: Prix au poids | BD2: oui
A3: =E3 -> 21 | B3: Articles Bricolage et Jardin - ABJ | C3: A | D3: Articles de bricolage | E3: =VLOOKUP(D3,'Comprendre la codification'!$D$20:$F$25,3,FALSE) -> 21 | G3: ABJ | H3: ="A_"&VLOOKUP(I3,$D$3:$E$4,2,FALSE) -> A_21 | I3: Articles de bricolage | J3: Outillage à main et leurs accessoires | K3: =VLOOKUP(J3,'Comprendre la codification'!$E$27:$F$43,2,FALSE) -> 100 | M3: 1 - Métal | N3: MAT_1 | O3: 1 | P3: MAT_1 | Q3: 1 - Métal | R3: Métal >90% | S3: Ferreux (Acier, Acier inoxydable, Fer forgé, Fonte, Acier au carbone, acier zingué, tole, alliages…) et non-ferreux (Aluminium, plomb, zinc, étain, chrome, cuivre, bronze, argent, zamac, nickel, titane, laiton...) | T3: =VLOOKUP(R3,'Comprendre la codification'!$D$45:$F$126,3,FALSE) -> 28 | W3: 2 - Bois et dérivés de bois | X3: =VLOOKUP(W3,$AT$2:$AU$13,2,FALSE) -> Cat_2 | AB3: Général | AC3: € / Tonne | AD3: Eléments de toutes dimensions et poids (T) | AE3: 000 | AF3: 101 | AG3: A_101 | AH3: Eléments de toutes dimensions et poids | AI3: € / Tonne | AJ3: Dim_1 | AN3: Dim_1 | AO3: Inférieur strictement à 0,5 kg | AP3: 020 | AT3: 2 - Bois et dérivés de bois | AU3: Cat_2 | AV3: 2 | AX3: 02 | AY3: Assemblage avec métal >50% et autres matériaux | AZ3: =VLOOKUP(AY3,'Comprendre la codification'!$D$49:$F$126,3,FALSE) -> 02 | BB3: Prix en fonction d'une autre unité fonctionelle | BD3: non
A4: =E4 -> 22 | B4: Articles Bricolage et Jardin - ABJ | C4: A | D4: Entretien et aménagement du jardin | E4: =VLOOKUP(D4,'Comprendre la codification'!$D$20:$F$25,3,FALSE) -> 22 | G4: ABJ | H4: A_21 | I4: Articles de bricolage | J4: Gros objets et machines non électriques et non thermiques et leurs accessoires | K4: =VLOOKUP(J4,'Comprendre la codification'!$E$27:$F$43,2,FALSE) -> 101 | M4: 2 - Bois et dérivés de bois | N4: MAT_2 | O4: 2 | P4: MAT_1 | Q4: 1 - Métal | R4: Assemblage avec métal >50% et autres matériaux | S4: Assemblage métal-bois, métal-plastique, métal-inertes … | T4: =VLOOKUP(R4,'Comprendre la codification'!$D$45:$F$126,3,FALSE) -> 02 | W4: 3 - Papier carton | X4: Cat_3 | AD4: Inférieur strictement à 0,5 kg | AE4: 020 | AF4: 102 | AG4: A_102 | AH4: Eléments de toutes dimensions et poids | AI4: € / Tonne | AJ4: Dim_1 | AN4: Dim_1 | AO4: Compris entre 0,5 kg et 1 kg exclus | AP4: 021 | AT4: 3 - Papier carton | AU4: Cat_3 | AV4: 3 | AY4: Cat2
G5: ABJ | H5: A_21 | I5: Articles de bricolage | J5: Outils et supports de travail en hauteur | K5: =VLOOKUP(J5,'Comprendre la codification'!$E$27:$F$43,2,FALSE) -> 102 | M5: 3 - Papier carton | N5: MAT_3 | O5: 3 | W5: 4 - Matériaux et fibres d'origine végétal ou animal autres que bois et papier, carton | X5: Cat_4 | AD5: Compris entre 0,5 kg et 1 kg exclus | AE5: 021 | AF5: 103 | AG5: A_103 | AH5: Eléments de toutes dimensions et poids | AI5: € / Tonne | AJ5: Dim_2 | AN5: Dim_1 | AO5: Compris entre 1 kg et 2 kg exclus | AP5: 022 | AT5: 4 - Matériaux et fibres d'origine végétal ou animal autres que bois et papier, carton | AU5: Cat_4 | AV5: 4 | AX5: 52 | AY5: Massif et assimilés certifiés >90% | AZ5: =VLOOKUP(AY5,'Comprendre la codification'!$D$49:$F$126,3,FALSE) -> 52
G6: ABJ | H6: A_21 | I6: Articles de bricolage | J6: Equipement personnel et accessoires de protection de bricolage | K6: =VLOOKUP(J6,'Comprendre la codification'!$E$27:$F$43,2,FALSE) -> 103 | M6: 4 - Matériaux et fibres d'origine végétal ou animal autres que bois et papier, carton | N6: MAT_4 | O6: 4 | P6: MAT_2 | Q6: 2 - Bois et dérivés de bois | R6: Massif et assimilés certifiés >90% | S6: Toutes essences (douglas, sapin, chène, hêtre, pin maritime, pin sylvestre, moabi , mélèze, teak, épicea ...), dont contreplaqué, contrecollé, lamellé, plaqué | T6: =VLOOKUP(R6,'Comprendre la codification'!$D$45:$F$126,3,FALSE) -> 52 | W6: 5 - Plastique, matériaux et fibres synthétiques | X6: Cat_5 | AD6: Compris entre 1 kg et 2 kg exclus | AE6: 022 | AF6: 104 | AG6: A_104 | AH6: Eléments de toutes dimensions et poids | AI6: € / Tonne | AJ6: Dim_2 | AN6: Dim_1 | AO6: Compris entre 2 kg et 3 kg exclus | AP6: 052 | AT6: 5 - Plastique, matériaux et fibres synthétiques | AU6: Cat_5 | AV6: 5 | AX6: 20 | AY6: Massif et assimilés certifiés >75% | AZ6: =VLOOKUP(AY6,'Comprendre la codification'!$D$49:$F$126,3,FALSE) -> 20
G7: ABJ | H7: A_21 | I7: Articles de bricolage | J7: Bâches, housses, filets et films de bricolage | K7: =VLOOKUP(J7,'Comprendre la codification'!$E$27:$F$43,2,FALSE) -> 104 | M7: 5 - Plastique, matériaux et fibres synthétiques | N7: MAT_5 | O7: 5 | P7: MAT_2 | Q7: 2 - Bois et dérivés de bois | R7: Massif et assimilés certifiés >75% | S7: Toutes essences (douglas, sapin, chène, hêtre, pin maritime, pin sylvestre, moabi , mélèze, teak, épicea ...), dont contreplaqué, contrecollé, lamellé, plaqué | T7: =VLOOKUP(R7,'Comprendre la codification'!$D$45:$F$126,3,FALSE) -> 20 | W7: 6 - Verre et parois vitrées | X7: Cat_6 | AD7: Compris entre 2 kg et 3 kg exclus | AE7: 052 | AF7: 105 | AG7: A_105 | AH7: Eléments de toutes dimensions et poids | AI7: € / Tonne | AJ7: Dim_2 | AN7: Dim_1 | AO7: Compris entre 3 kg et 5 kg exclus | AP7: 053 | AT7: 6 - Verre et parois vitrées | AU7: Cat_6 | AV7: 6 | AX7: 53 | AY7: Massif et assimilés >90% | AZ7: =VLOOKUP(AY7,'Comprendre la codification'!$D$49:$F$126,3,FALSE) -> 53
G8: ABJ | H8: ="A_"&VLOOKUP(I8,$D$3:$E$4,2,FALSE) -> A_21 | I8: Articles de bricolage | J8: Seaux, auges et contenants | K8: =VLOOKUP(J8,'Comprendre la codification'!$E$27:$F$43,2,FALSE) -> 105 | M8: 6 - Verre et parois vitrées | N8: MAT_6 | O8: 6 | P8: MAT_2 | Q8: 2 - Bois et dérivés de bois | R8: Massif et assimilés >90% | S8: Toutes essences (douglas, sapin, chène, hêtre, pin maritime, pin sylvestre, moabi , mélèze, teak, épicea ...), dont contreplaqué, contrecollé, lamellé, plaqué | T8: =VLOOKUP(R8,'Comprendre la codification'!$D$45:$F$126,3,FALSE) -> 53 | W8: 10 - Autres mix matériaux ou matériaux non classés ou non spécifiés | X8: Cat_10 | AD8: Compris entre 3 kg et 5 kg exclus | AE8: 053 | AF8: 150 | AG8: A_150 | AH8: Eléments de toutes dimensions et poids | AI8: € / Tonne | AJ8: Dim_2 | AN8: Dim_1 | AO8: Compris entre 5 kg et 7 kg exclus | AP8: 054 | AT8: 7 - Plâtre (Cat. e du décret) | AU8: Cat_7 | AV8: 7 | AX8: 21 | AY8: Massif et assimilés >75% | AZ8: =VLOOKUP(AY8,'Comprendre la codification'!$D$49:$F$126,3,FALSE) -> 21
G9: ABJ | H9: A_22 | I9: Entretien et aménagement du jardin | J9: Outils à main d’entretien du jardin et petits accessoires | K9: =VLOOKUP(J9,'Comprendre la codification'!$E$27:$F$43,2,FALSE) -> 150 | M9: 7 - Plâtre | N9: MAT_7 | O9: 7 | P9: MAT_2 | Q9: 2 - Bois et dérivés de bois | R9: Massif et assimilés >75% | S9: Toutes essences (douglas, sapin, chène, hêtre, pin maritime, pin sylvestre, moabi , mélèze, teak, épicea ...), dont contreplaqué, contrecollé, lamellé, plaqué | T9: =VLOOKUP(R9,'Comprendre la codification'!$D$45:$F$126,3,FALSE) -> 21 | W9: A_101 | AD9: Compris entre 5 kg et 7 kg exclus | AE9: 054 | AF9: 151 | AG9: A_151 | AH9: Eléments de toutes dimensions et poids | AI9: € / Tonne | AJ9: Dim_2 | AN9: Dim_1 | AO9: Compris entre 7 kg et 10 kg exclus | AP9: 055 | AT9: 8- Laines de verre et laines de roches (Cat. h et i du décret) | AU9: Cat_8 | AV9: 8 | AX9: 59 | AY9: Panneaux de particules ou OSB certifiés >90% | AZ9: =VLOOKUP(AY9,'Comprendre la codification'!$D$49:$F$126,3,FALSE) -> 59
G10: ABJ | H10: A_22 | I10: Entretien et aménagement du jardin | J10: Equipement personnel et accessoires de protection de jardinage | K10: =VLOOKUP(J10,'Comprendre la codification'!$E$27:$F$43,2,FALSE) -> 151 | M10: 8 - Laines de verre et laines de roches | N10: MAT_8 | O10: 8 | P10: MAT_2 | Q10: 2 - Bois et dérivés de bois | R10: Panneaux de particules ou OSB certifiés >90% | S10: Panneaux de particules, OSB | T10: =VLOOKUP(R10,'Comprendre la codification'!$D$45:$F$126,3,FALSE) -> 59 | W10: 1 - Métal | X10: =VLOOKUP(W10,$AT$2:$AU$13,2,FALSE) -> Cat_1 | AD10: Compris entre 7 kg et 10 kg exclus | AE10: 055 | AF10: 152 | AG10: A_152 | AH10: Eléments de toutes dimensions et poids | AI10: € / Tonne | AJ10: Dim_3 | AN10: Dim_1 | AO10: Compris entre 10 kg et 15 kg exclus | AP10: 056 | AT10: 9 - Membranes bitumineuses (Cat. g du décret) | AU10: Cat_9 | AV10: 9 | AX10: 60 | AY10: Panneaux de particules ou OSB certifiés >75% | AZ10: =VLOOKUP(AY10,'Comprendre la codification'!$D$49:$F$126,3,FALSE) -> 60
G11: ABJ | H11: A_22 | I11: Entretien et aménagement du jardin | J11: Pots de fleur et contenants | K11: =VLOOKUP(J11,'Comprendre la codification'!$E$27:$F$43,2,FALSE) -> 152 | M11: 9 - Membranes bitumineuses | N11: MAT_9 | O11: 9 | P11: MAT_2 | Q11: 2 - Bois et dérivés de bois | R11: Panneaux de particules ou OSB certifiés >75% | S11: Panneaux de particules, OSB | T11: =VLOOKUP(R11,'Comprendre la codification'!$D$45:$F$126,3,FALSE) -> 60 | W11: 2 - Bois et dérivés de bois | X11: Cat_2 | AD11: Compris entre 10 kg et 15 kg exclus | AE11: 056 | AF11: 153 | AG11: A_153 | AH11: Eléments de toutes dimensions et poids | AI11: € / Tonne | AJ11: Dim_2 | AN11: Dim_1 | AO11: Compris entre 15 kg et 20 kg exclus | AP11: 057 | AT11: 10 - Autres mix matériaux ou matériaux non classés ou non spécifiés | AU11: Cat_10 | AV11: 10 | AX11: 61 | AY11: Panneaux de particules ou OSB >90% | AZ11: =VLOOKUP(AY11,'Comprendre la codification'!$D$49:$F$126,3,FALSE) -> 61
G12: ABJ | H12: A_22 | I12: Entretien et aménagement du jardin | J12: Bâches, housses, filets et films de jardinage | K12: =VLOOKUP(J12,'Comprendre la codification'!$E$27:$F$43,2,FALSE) -> 153 | M12: 10 - Autres mix matériaux ou matériaux non classés ou non spécifiés | N12: MAT_10 | O12: 10 | P12: MAT_2 | Q12: 2 - Bois et dérivés de bois | R12: Panneaux de particules ou OSB >90% | S12: Panneaux de particules, OSB | T12: =VLOOKUP(R12,'Comprendre la codification'!$D$45:$F$126,3,FALSE) -> 61 | W12: 3 - Papier carton | X12: Cat_3 | AD12: Compris entre 15 kg et 20 kg exclus | AE12: 057 | AF12: 154 | AG12: A_154 | AH12: Eléments de toutes dimensions et poids | AI12: € / Tonne | AJ12: Dim_1 | AN12: Dim_1 | AO12: Compris entre 20 kg et 25 kg exclus | AP12: 058 | AT12: 11 - Mortiers, enduits, peintures, vernis, résines, produits de préparation (Cat. c du décret) | AU12: Cat_11 | AV12: 11 | AX12: 25 | AY12: Panneaux de particules ou OSB >75% | AZ12: =VLOOKUP(AY12,'Comprendre la codification'!$D$49:$F$126,3,FALSE) -> 25
G13: ABJ | H13: A_22 | I13: Entretien et aménagement du jardin | J13: Equipements de plein air et leurs accessoires (hors bâches, filets, housses) | K13: =VLOOKUP(J13,'Comprendre la codification'!$E$27:$F$43,2,FALSE) -> 154 | M13: 11 - Mortiers, enduits, peintures, vernis, résines, produits de préparation | N13: MAT_11 | O13: 11 | P13: MAT_2 | Q13: 2 - Bois et dérivés de bois | R13: Panneaux de particules ou OSB >75% | S13: Panneaux de particules, OSB | T13: =VLOOKUP(R13,'Comprendre la codification'!$D$45:$F$126,3,FALSE) -> 25 | W13: 4 - Matériaux et fibres d'origine végétal ou animal autres que bois et papier, carton | X13: Cat_4 | AD13: Compris entre 20 kg et 25 kg exclus | AE13: 058 | AF13: 155 | AG13: A_155 | AH13: Eléments de toutes dimensions et poids | AI13: € / Tonne | AJ13: Dim_1 | AN13: Dim_1 | AO13: Compris entre 25 kg et 30 kg exclus | AP13: 059 | AT13: 12 - Matériaux inertes | AU13: Cat_12 | AV13: 12 | AX13: 62 | AY13: Dérivés de bois >90% | AZ13: =VLOOKUP(AY13,'Comprendre la codification'!$D$49:$F$126,3,FALSE) -> 62
G14: ABJ | H14: A_22 | I14: Entretien et aménagement du jardin | J14: Structures extérieures non-maçonnées | K14: =VLOOKUP(J14,'Comprendre la codification'!$E$27:$F$43,2,FALSE) -> 155 | M14: 12 - Matériaux inertes | N14: MAT_12 | O14: 12 | P14: MAT_2 | Q14: 2 - Bois et dérivés de bois | R14: Dérivés de bois >90% | S14: Bois composite, MDF, HDF, alvéolaire, stratifé, HPL…. | T14: =VLOOKUP(R14,'Comprendre la codification'!$D$45:$F$126,3,FALSE) -> 62 | W14: 5 - Plastique, matériaux et fibres synthétiques | X14: Cat_5 | AD14: Compris entre 25 kg et 30 kg exclus | AE14: 059 | AN14: Dim_1 | AO14: Compris entre 30 kg et 40 kg exclus | AP14: 027 | AX14: 01 | AY14: Assemblage de bois, dérivés de bois à plus de 50% avec d'autres matériaux ou bois composite (hors verre) | AZ14: =VLOOKUP(AY14,'Comprendre la codification'!$D$49:$F$126,3,FALSE) -> 01
P15: MAT_2 | Q15: 2 - Bois et dérivés de bois | R15: Assemblage de bois, dérivés de bois à plus de 50% avec d'autres matériaux ou bois composite (hors verre) | S15: Assemblage bois-métal, bois-plastique … | T15: =VLOOKUP(R15,'Comprendre la codification'!$D$45:$F$126,3,FALSE) -> 01 | W15: 6 - Verre et parois vitrées | X15: Cat_6 | AD15: Compris entre 30 kg et 40 kg exclus | AE15: 027 | AN15: Dim_1 | AO15: Compris entre 40 kg et 50 kg exclus | AP15: 060 | AY15: Cat3
W16: 10 - Autres mix matériaux ou matériaux non classés ou non spécifiés | X16: Cat_10 | AD16: Compris entre 40 kg et 50 kg exclus | AE16: 060 | AN16: Dim_2 | AO16: Eléments de toutes dimensions et poids (T) | AP16: 000 | AX16: 19 | AY16: Papier carton >50% avec d'autres matériaux (hors verre) | AZ16: =VLOOKUP(AY16,'Comprendre la codification'!$D$49:$F$126,3,FALSE) -> 19
P17: MAT_3 | Q17: 3 - Papier carton | R17: Papier carton >50% avec d'autres matériaux (hors verre) | S17: Papier, Carton, Compact, Papier Kraft | T17: =VLOOKUP(R17,'Comprendre la codification'!$D$45:$F$126,3,FALSE) -> 19 | W17: 12 - Matériaux inertes | X17: Cat_12 | AN17: Dim_2 | AO17: Inférieur strictement à 0,5 kg | AP17: 020 | AY17: Cat4
W18: A_103 | AN18: Dim_2 | AO18: Compris entre 0,5 kg et 1 kg exclus | AP18: 021 | AX18: 64 | AY18: Caoutchouc naturel >50% | AZ18: =VLOOKUP(AY18,'Comprendre la codification'!$D$49:$F$126,3,FALSE) -> 64
P19: MAT_4 | Q19: 4 - Matériaux et fibres d'origine végétal ou animal autres que bois et papier, carton | R19: Matériaux bio sourcés ou textiles non synthétiques >90% | S19: Tiges végétales (bambou, rotin, osiers, jute, paille, liège), textiles naturels d'origine végétale non mélangés (coton, lin, chanvre, soie, ramie, fibres de noix de coco, rafia…) | T19: =VLOOKUP(R19,'Comprendre la codification'!$D$45:$F$126,3,FALSE) -> 55 | W19: 1 - Métal | X19: =VLOOKUP(W19,$AT$2:$AU$13,2,FALSE) -> Cat_1 | AN19: Dim_2 | AO19: Compris entre 1 kg et 2 kg exclus | AP19: 022 | AX19: 63 | AY19: Caoutchouc naturel >90% | AZ19: =VLOOKUP(AY19,'Comprendre la codification'!$D$49:$F$126,3,FALSE) -> 63
P20: MAT_4 | Q20: 4 - Matériaux et fibres d'origine végétal ou animal autres que bois et papier, carton | R20: Matériaux bio sourcés ou textiles non synthétiques >50% | S20: Assemblage de matériaux bio sourcés avec du plastique, du métal … | T20: =VLOOKUP(R20,'Comprendre la codification'!$D$45:$F$126,3,FALSE) -> 04 | W20: 2 - Bois et dérivés de bois | X20: Cat_2 | AN20: Dim_2 | AO20: Compris entre 2 kg et 3 kg exclus | AP20: 052 | AX20: 04 | AY20: Matériaux bio sourcés ou textiles non synthétiques >50% | AZ20: =VLOOKUP(AY20,'Comprendre la codification'!$D$49:$F$126,3,FALSE) -> 04
P21: MAT_4 | Q21: 4 - Matériaux et fibres d'origine végétal ou animal autres que bois et papier, carton | R21: Caoutchouc naturel >90% | S21: Caoutchouc, latex | T21: =VLOOKUP(R21,'Comprendre la codification'!$D$45:$F$126,3,FALSE) -> 63 | W21: 3 - Papier carton | X21: Cat_3 | AN21: Dim_2 | AO21: Compris entre 3 kg et 5 kg exclus | AP21: 053 | AX21: 55 | AY21: Matériaux bio sourcés ou textiles non synthétiques >90% | AZ21: =VLOOKUP(AY21,'Comprendre la codification'!$D$49:$F$126,3,FALSE) -> 55
P22: MAT_4 | Q22: 4 - Matériaux et fibres d'origine végétal ou animal autres que bois et papier, carton | R22: Caoutchouc naturel >50% | S22: Caoutchouc, latex | T22: =VLOOKUP(R22,'Comprendre la codification'!$D$45:$F$126,3,FALSE) -> 64 | W22: 4 - Matériaux et fibres d'origine végétal ou animal autres que bois et papier, carton | X22: Cat_4 | AN22: Dim_2 | AO22: Compris entre 5 kg et 7 kg exclus | AP22: 054 | AX22: 06 | AY22: Matériaux d'origine animale >50% | AZ22: =VLOOKUP(AY22,'Comprendre la codification'!$D$49:$F$126,3,FALSE) -> 06
P23: MAT_4 | Q23: 4 - Matériaux et fibres d'origine végétal ou animal autres que bois et papier, carton | R23: Matériaux d'origine animale >50% | S23: Matières textiles ou rembourrages d'origine animale (laine, feutre, mohair, plumes, duvets, poils, cuirs...) | T23: =VLOOKUP(R23,'Comprendre la codification'!$D$45:$F$126,3,FALSE) -> 06 | W23: 5 - Plastique, matériaux et fibres synthétiques | X23: Cat_5 | AN23: Dim_3 | AO23: Eléments de toutes dimensions et poids (T) | AP23: 000 | AY23: Cat5
W24: 6 - Verre et parois vitrées | X24: Cat_6 | AN24: Dim_3 | AO24: Inférieur strictement à 0,5 kg | AP24: 020 | AX24: 41 | AY24: Plastiques (mono résine) >90% | AZ24: =VLOOKUP(AY24,'Comprendre la codification'!$D$49:$F$126,3,FALSE) -> 41
P25: MAT_5 | Q25: 5 - Plastique, matériaux et fibres synthétiques | R25: Plastiques (mono résine) >90% | S25: Plastiques et autres matériaux synthétiques : acrylique, PP, PE, PS, XPS, EPS, PER, Nylon, Polyamide, PU, PVC, vinyle, époxy, fibres synthétiques, PL, matériaux composites, carbone…. | T25: =VLOOKUP(R25,'Comprendre la codification'!$D$45:$F$126,3,FALSE) -> 41 | W25: 10 - Autres mix matériaux ou matériaux non classés ou non spécifiés | X25: Cat_10 | AN25: Dim_3 | AO25: Compris entre 0,5 kg et 1 kg exclus | AP25: 021 | AX25: 45 | AY25: PE ou PP ou mélange PP/PE >90% | AZ25: =VLOOKUP(AY25,'Comprendre la codification'!$D$49:$F$126,3,FALSE) -> 45
P26: MAT_5 | Q26: 5 - Plastique, matériaux et fibres synthétiques | R26: PE ou PP ou mélange PP/PE >90% | S26: Polyéthylène (PE), Polypropylène (PP), mélange PP/PE | T26: =VLOOKUP(R26,'Comprendre la codification'!$D$45:$F$126,3,FALSE) -> 45 | W26: A_104 | AN26: Dim_3 | AO26: Compris entre 1 kg et 2 kg exclus | AP26: 022 | AX26: 46 | AY26: ABS >90% | AZ26: =VLOOKUP(AY26,'Comprendre la codification'!$D$49:$F$126,3,FALSE) -> 46
P27: MAT_5 | Q27: 5 - Plastique, matériaux et fibres synthétiques | R27: PVC >90% | T27: =VLOOKUP(R27,'Comprendre la codification'!$D$45:$F$126,3,FALSE) -> 48 | W27: 3 - Papier carton | X27: =VLOOKUP(W27,$AT$2:$AU$13,2,FALSE) -> Cat_3 | AN27: Dim_3 | AO27: Compris entre 2 kg et 3 kg exclus | AP27: 052 | AX27: 48 | AY27: PVC >90% | AZ27: =VLOOKUP(AY27,'Comprendre la codification'!$D$49:$F$126,3,FALSE) -> 48
P28: MAT_5 | Q28: 5 - Plastique, matériaux et fibres synthétiques | R28: Polyterephtalate d'Ethylène (PET) >90% | T28: =VLOOKUP(R28,'Comprendre la codification'!$D$45:$F$126,3,FALSE) -> 42 | W28: 4 - Matériaux et fibres d'origine végétal ou animal autres que bois et papier, carton | X28: Cat_4 | AN28: Dim_3 | AO28: Compris entre 3 kg et 5 kg exclus | AP28: 053 | AX28: 47 | AY28: Polystyrène >90% | AZ28: =VLOOKUP(AY28,'Comprendre la codification'!$D$49:$F$126,3,FALSE) -> 47
P29: MAT_5 | Q29: 5 - Plastique, matériaux et fibres synthétiques | R29: ABS >90% | T29: =VLOOKUP(R29,'Comprendre la codification'!$D$45:$F$126,3,FALSE) -> 46 | W29: 5 - Plastique, matériaux et fibres synthétiques | X29: Cat_5 | AN29: Dim_3 | AO29: Compris entre 5 kg et 7 kg exclus | AP29: 054 | AX29: 42 | AY29: Polyterephtalate d'Ethylène (PET) >90% | AZ29: =VLOOKUP(AY29,'Comprendre la codification'!$D$49:$F$126,3,FALSE) -> 42
P30: MAT_5 | Q30: 5 - Plastique, matériaux et fibres synthétiques | R30: Polystyrène >90% | T30: =VLOOKUP(R30,'Comprendre la codification'!$D$45:$F$126,3,FALSE) -> 47 | W30: 10 - Autres mix matériaux ou matériaux non classés ou non spécifiés | X30: Cat_10 | AN30: Dim_3 | AO30: Compris entre 7 kg et 10 kg exclus | AP30: 055 | AX30: 49 | AY30: Caoutchouc synthétique >90% | AZ30: =VLOOKUP(AY30,'Comprendre la codification'!$D$49:$F$126,3,FALSE) -> 49
P31: MAT_5 | Q31: 5 - Plastique, matériaux et fibres synthétiques | R31: Plastiques ou autres matériaux synthétiques >50% | S31: Assemblage de matériaux et textiles synthétiques, ensemble | T31: =VLOOKUP(R31,'Comprendre la codification'!$D$45:$F$126,3,FALSE) -> 05 | W31: A_102 | AN31: Dim_3 | AO31: Compris entre 10 kg et 15 kg exclus | AP31: 056 | AX31: 65 | AY31: Matériaux ou fibres synthétiques >90% | AZ31: =VLOOKUP(AY31,'Comprendre la codification'!$D$49:$F$126,3,FALSE) -> 65
P32: MAT_5 | Q32: 5 - Plastique, matériaux et fibres synthétiques | R32: Caoutchouc synthétique >90% | S32: Caoutchouc | T32: =VLOOKUP(R32,'Comprendre la codification'!$D$45:$F$126,3,FALSE) -> 49 | W32: 1 - Métal | X32: =VLOOKUP(W32,$AT$2:$AU$13,2,FALSE) -> Cat_1 | AN32: Dim_3 | AO32: Compris entre 15 kg et 20 kg exclus | AP32: 057 | AX32: 05 | AY32: Plastiques ou autres matériaux synthétiques >50% | AZ32: =VLOOKUP(AY32,'Comprendre la codification'!$D$49:$F$126,3,FALSE) -> 05
P33: MAT_5 | Q33: 5 - Plastique, matériaux et fibres synthétiques | R33: Eléments contenant du latex | S33: Latex | T33: =VLOOKUP(R33,'Comprendre la codification'!$D$45:$F$126,3,FALSE) -> 10 | W33: 2 - Bois et dérivés de bois | X33: Cat_2 | AX33: 40 | AY33: Assemblage caoutchouc synthétique ou latex >50% avec d'autres matériaux | AZ33: =VLOOKUP(AY33,'Comprendre la codification'!$D$49:$F$126,3,FALSE) -> 40
P34: MAT_5 | Q34: 5 - Plastique, matériaux et fibres synthétiques | R34: Assemblage caoutchouc synthétique ou latex >50% avec d'autres matériaux | S34: Caoutchouc, latex avec d'autres matériaux synthétiques, du bois, du métal … | T34: =VLOOKUP(R34,'Comprendre la codification'!$D$45:$F$126,3,FALSE) -> 40 | W34: 3 - Papier carton | X34: Cat_3 | AX34: 67 | AY34: Assemblage matériaux ou fibres synthétiques >50% avec d'autres matériaux | AZ34: =VLOOKUP(AY34,'Comprendre la codification'!$D$49:$F$126,3,FALSE) -> 67
P35: MAT_5 | Q35: 5 - Plastique, matériaux et fibres synthétiques | R35: Matériaux ou fibres synthétiques >90% | S35: Polyamides, nylon, polyester (PES) et polyterephtalate d'Ethylène (PET), viscose, polyester, élastane, mousses … | T35: =VLOOKUP(R35,'Comprendre la codification'!$D$45:$F$126,3,FALSE) -> 65 | W35: 4 - Matériaux et fibres d'origine végétal ou animal autres que bois et papier, carton | X35: Cat_4 | AY35: Cat6
P36: MAT_5 | Q36: 5 - Plastique, matériaux et fibres synthétiques | R36: Textile et rembourrage en polyester >90% | S36: Polyester | T36: =VLOOKUP(R36,'Comprendre la codification'!$D$45:$F$126,3,FALSE) -> 66 | W36: 5 - Plastique, matériaux et fibres synthétiques | X36: Cat_5 | AX36: 72 | AY36: Assemblage verre à plus de 50% avec bois ou dérivés de bois | AZ36: =VLOOKUP(AY36,'Comprendre la codification'!$D$49:$F$126,3,FALSE) -> 72
P37: MAT_5 | Q37: 5 - Plastique, matériaux et fibres synthétiques | R37: Eléments contenant de la mousse | T37: =VLOOKUP(R37,'Comprendre la codification'!$D$45:$F$126,3,FALSE) -> 09 | W37: 6 - Verre et parois vitrées | X37: Cat_6 | AX37: 71 | AY37: Assemblage verre à plus de 50% avec Inerte | AZ37: =VLOOKUP(AY37,'Comprendre la codification'!$D$49:$F$126,3,FALSE) -> 71
P38: MAT_5 | Q38: 5 - Plastique, matériaux et fibres synthétiques | R38: Eléments textiles contenant des ressorts | T38: =VLOOKUP(R38,'Comprendre la codification'!$D$45:$F$126,3,FALSE) -> 11 | W38: 10 - Autres mix matériaux ou matériaux non classés ou non spécifiés | X38: Cat_10 | AX38: 70 | AY38: Assemblage verre à plus de 50% avec métal | AZ38: =VLOOKUP(AY38,'Comprendre la codification'!$D$49:$F$126,3,FALSE) -> 70
P39: MAT_5 | Q39: 5 - Plastique, matériaux et fibres synthétiques | R39: Assemblage matériaux ou fibres synthétiques >50% avec d'autres matériaux | S39: Assemblage de matériaux et textiles synthétiques avec du métal, du bois … | T39: =VLOOKUP(R39,'Comprendre la codification'!$D$45:$F$126,3,FALSE) -> 67 | W39: 12 - Matériaux inertes | X39: Cat_12 | AX39: 73 | AY39: Assemblage verre à plus de 50% avec plastique | AZ39: =VLOOKUP(AY39,'Comprendre la codification'!$D$49:$F$126,3,FALSE) -> 73
W40: A_153 | AX40: 68 | AY40: Verre >90% | AZ40: =VLOOKUP(AY40,'Comprendre la codification'!$D$49:$F$126,3,FALSE) -> 68
P41: MAT_6 | Q41: 6 - Verre et parois vitrées | R41: Verre >90% | S41: Verre plat, brique de verre … | T41: =VLOOKUP(R41,'Comprendre la codification'!$D$45:$F$126,3,FALSE) -> 68 | W41: 3 - Papier carton | X41: =VLOOKUP(W41,$AT$2:$AU$13,2,FALSE) -> Cat_3 | AY41: Cat7
P42: MAT_6 | Q42: 6 - Verre et parois vitrées | R42: Assemblage verre à plus de 50% avec métal | S42: Assemblage de verre avec des métaux | T42: =VLOOKUP(R42,'Comprendre la codification'!$D$45:$F$126,3,FALSE) -> 70 | W42: 4 - Matériaux et fibres d'origine végétal ou animal autres que bois et papier, carton | X42: Cat_4 | AX42: 75 | AY42: Plâtre >90% | AZ42: =VLOOKUP(AY42,'Comprendre la codification'!$D$49:$F$126,3,FALSE) -> 75
P43: MAT_6 | Q43: 6 - Verre et parois vitrées | R43: Assemblage verre à plus de 50% avec Inerte | S43: Assemblage de verre avec de l'inerte | T43: =VLOOKUP(R43,'Comprendre la codification'!$D$45:$F$126,3,FALSE) -> 71 | W43: 5 - Plastique, matériaux et fibres synthétiques | X43: Cat_5 | AX43: 76 | AY43: Plâtre >50% | AZ43: =VLOOKUP(AY43,'Comprendre la codification'!$D$49:$F$126,3,FALSE) -> 76
P44: MAT_6 | Q44: 6 - Verre et parois vitrées | R44: Assemblage verre à plus de 50% avec bois ou dérivés de bois | S44: Assemblage de verre avec du bois ou des matériaux biosourcés | T44: =VLOOKUP(R44,'Comprendre la codification'!$D$45:$F$126,3,FALSE) -> 72 | W44: 10 - Autres mix matériaux ou matériaux non classés ou non spécifiés | X44: Cat_10 | AY44: Cat8
P45: MAT_6 | Q45: 6 - Verre et parois vitrées | R45: Assemblage verre à plus de 50% avec plastique | S45: Assemblage de verre avec du plastique | T45: =VLOOKUP(R45,'Comprendre la codification'!$D$45:$F$126,3,FALSE) -> 73 | W45: A_151 | AX45: 77 | AY45: Laines de roche à plus de 90 % | AZ45: =VLOOKUP(AY45,'Comprendre la codification'!$D$49:$F$126,3,FALSE) -> 77
P46: MAT_6 | Q46: 6 - Verre et parois vitrées | R46: Miroir >90% | S46: Miroir | T46: =VLOOKUP(R46,'Comprendre la codification'!$D$45:$F$126,3,FALSE) -> 69 | W46: 1 - Métal | X46: =VLOOKUP(W46,$AT$2:$AU$13,2,FALSE) -> Cat_1 | AX46: 78 | AY46: Laine de verre à plus de 90 % | AZ46: =VLOOKUP(AY46,'Comprendre la codification'!$D$49:$F$126,3,FALSE) -> 78
W47: 2 - Bois et dérivés de bois | X47: Cat_2 | AX47: 79 | AY47: Assemblage de laines de verre ou laines de roches à plus de 50% et d'autres matériaux | AZ47: =VLOOKUP(AY47,'Comprendre la codification'!$D$49:$F$126,3,FALSE) -> 79
P48: MAT_7 | Q48: 7 - Plâtre | R48: Plâtre >90% | S48: Matière en plâtre, plaque de plâtre (placo) et fibre gypse | T48: =VLOOKUP(R48,'Comprendre la codification'!$D$45:$F$126,3,FALSE) -> 75 | W48: 3 - Papier carton | X48: Cat_3 | AY48: Cat9
P49: MAT_7 | Q49: 7 - Plâtre | R49: Plâtre >50% | S49: Elément composé majoritaitement de plâtre et associé à d'autres matériaux | T49: =VLOOKUP(R49,'Comprendre la codification'!$D$45:$F$126,3,FALSE) -> 76 | W49: 4 - Matériaux et fibres d'origine végétal ou animal autres que bois et papier, carton | X49: Cat_4 | AX49: 80 | AY49: Membranes bitumineuses à plus de 90 % | AZ49: =VLOOKUP(AY49,'Comprendre la codification'!$D$49:$F$126,3,FALSE) -> 80
W50: 5 - Plastique, matériaux et fibres synthétiques | X50: Cat_5 | AY50: Cat10
P51: MAT_8 | Q51: 8 - Laines de verre et laines de roches | R51: Laines de roche à plus de 90 % | S51: Matière isolante fabriquée à partir d'un matériau naturel issu de l'activité volcanique | T51: =VLOOKUP(R51,'Comprendre la codification'!$D$45:$F$126,3,FALSE) -> 77 | W51: 6 - Verre et parois vitrées | X51: Cat_6 | AX51: 82 | AY51: Assemblage de 3 matériaux ou plus sans un matériau à plus de 50% | AZ51: =VLOOKUP(AY51,'Comprendre la codification'!$D$49:$F$126,3,FALSE) -> 82
P52: MAT_8 | Q52: 8 - Laines de verre et laines de roches | R52: Laine de verre à plus de 90 % | S52: Matière composée de fils de verre, utilisé comme filtrant ou isolant | T52: =VLOOKUP(R52,'Comprendre la codification'!$D$45:$F$126,3,FALSE) -> 78 | W52: 10 - Autres mix matériaux ou matériaux non classés ou non spécifiés | X52: Cat_10 | AX52: 00 | AY52: Non connu ou non spécifié par l'entreprise | AZ52: =VLOOKUP(AY52,'Comprendre la codification'!$D$49:$F$126,3,FALSE) -> 00
P53: MAT_8 | Q53: 8 - Laines de verre et laines de roches | R53: Assemblage de laines de verre ou laines de roches à plus de 50% et d'autres matériaux | S53: Elément composé majoritaitement de laine minérale | T53: =VLOOKUP(R53,'Comprendre la codification'!$D$45:$F$126,3,FALSE) -> 79 | W53: A_154 | AY53: Cat12
W54: 1 - Métal | X54: =VLOOKUP(W54,$AT$2:$AU$13,2,FALSE) -> Cat_1 | AX54: 84 | AY54: Ardoise >90% | AZ54: =VLOOKUP(AY54,'Comprendre la codification'!$D$49:$F$126,3,FALSE) -> 84
P55: MAT_9 | Q55: 9 - Membranes bitumineuses | R55: Membranes bitumineuses à plus de 90 % | S55: Membrane d'étanchéité synthétique | T55: =VLOOKUP(R55,'Comprendre la codification'!$D$45:$F$126,3,FALSE) -> 80 | W55: 2 - Bois et dérivés de bois | X55: Cat_2 | AX55: 08 | AY55: Assemblage de matériaux avec de l'inerte >50% | AZ55: =VLOOKUP(AY55,'Comprendre la codification'!$D$49:$F$126,3,FALSE) -> 08
W56: 3 - Papier carton | X56: Cat_3 | AX56: 74 | AY56: Béton >90% | AZ56: =VLOOKUP(AY56,'Comprendre la codification'!$D$49:$F$126,3,FALSE) -> 74
P57: MAT_10 | Q57: 10 - Autres mix matériaux ou matériaux non classés ou non spécifiés | R57: Assemblage dont la composition conjointe en bois, dérivés de bois et en métal dépasse 90% | T57: =VLOOKUP(R57,'Comprendre la codification'!$D$45:$F$126,3,FALSE) -> 81 | W57: 4 - Matériaux et fibres d'origine végétal ou animal autres que bois et papier, carton | X57: Cat_4 | AX57: 97 | AY57: Céramique >90% | AZ57: =VLOOKUP(AY57,'Comprendre la codification'!$D$49:$F$126,3,FALSE) -> 97
P58: MAT_10 | Q58: 10 - Autres mix matériaux ou matériaux non classés ou non spécifiés | R58: Assemblage de 3 matériaux ou plus sans un matériau à plus de 50% | S58: Elément composé de parties en matériaux divers avec souvent mais non exclusivement une partie de plastique ou de textile synthétique | T58: =VLOOKUP(R58,'Comprendre la codification'!$D$45:$F$126,3,FALSE) -> 82 | W58: 5 - Plastique, matériaux et fibres synthétiques | X58: Cat_5 | AX58: 90 | AY58: Ciment >90% | AZ58: =VLOOKUP(AY58,'Comprendre la codification'!$D$49:$F$126,3,FALSE) -> 90
P59: MAT_10 | Q59: 10 - Autres mix matériaux ou matériaux non classés ou non spécifiés | R59: Non connu ou non spécifié par l'entreprise | S59: Non connu ou non spécifié par l'entreprise | T59: =VLOOKUP(R59,'Comprendre la codification'!$D$45:$F$126,3,FALSE) -> 00 | W59: 6 - Verre et parois vitrées | X59: Cat_6 | AX59: 15 | AY59: Composites et autres matériaux minéraux reconstitués >50% | AZ59: =VLOOKUP(AY59,'Comprendre la codification'!$D$49:$F$126,3,FALSE) -> 15
W60: 10 - Autres mix matériaux ou matériaux non classés ou non spécifiés | X60: Cat_10 | AX60: 91 | AY60: Granit >90% | AZ60: =VLOOKUP(AY60,'Comprendre la codification'!$D$49:$F$126,3,FALSE) -> 91
P61: MAT_11 | Q61: 11 - Mortiers, enduits, peintures, vernis, résines, produits de préparation | R61: Produits liquides, y.c. dangereux >90% | S61: Sous couches, préparation des sols et étanchéité, Peintures extérieures, Traitement des sols et toitures, Peintures intérieures, Colles et adhésifs, Résines PU et expansive (aérosol), Mastics, joints et mousses PU, Adjuvants, Traitement des bois, Traitement des matériaux (aérosol), Traitement des matériaux hors bois, Vernis et vitrificateurs et dérivés, Vernis et vitrificateurs et dérivés (aérosols), Enduits poudre, Enduits pate | T61: =VLOOKUP(R61,'Comprendre la codification'!$D$45:$F$126,3,FALSE) -> 83 | W61: 12 - Matériaux inertes | X61: Cat_12 | AX61: 94 | AY61: Grès >90% | AZ61: =VLOOKUP(AY61,'Comprendre la codification'!$D$49:$F$126,3,FALSE) -> 94
W62: A_150 | AX62: 87 | AY62: Lave >90% | AZ62: =VLOOKUP(AY62,'Comprendre la codification'!$D$49:$F$126,3,FALSE) -> 87
P63: MAT_12 | Q63: 12 - Matériaux inertes | R63: Assemblage de matériaux avec de l'inerte >50% | T63: =VLOOKUP(R63,'Comprendre la codification'!$D$45:$F$126,3,FALSE) -> 08 | W63: 1 - Métal | X63: =VLOOKUP(W63,$AT$2:$AU$13,2,FALSE) -> Cat_1 | AX63: 98 | AY63: Pierre artificielle >90% | AZ63: =VLOOKUP(AY63,'Comprendre la codification'!$D$49:$F$126,3,FALSE) -> 98
P64: MAT_12 | Q64: 12 - Matériaux inertes | R64: Composites et autres matériaux minéraux reconstitués >50% | T64: =VLOOKUP(R64,'Comprendre la codification'!$D$45:$F$126,3,FALSE) -> 15 | W64: 2 - Bois et dérivés de bois | X64: Cat_2 | AX64: 86 | AY64: Pierre calcaire >90% | AZ64: =VLOOKUP(AY64,'Comprendre la codification'!$D$49:$F$126,3,FALSE) -> 86
P65: MAT_12 | Q65: 12 - Matériaux inertes | R65: Ardoise >90% | S65: Ardoise | T65: =VLOOKUP(R65,'Comprendre la codification'!$D$45:$F$126,3,FALSE) -> 84 | W65: 3 - Papier carton | X65: Cat_3 | AX65: 89 | AY65: Terre cuite ou crue >90% | AZ65: =VLOOKUP(AY65,'Comprendre la codification'!$D$49:$F$126,3,FALSE) -> 89
P66: MAT_12 | Q66: 12 - Matériaux inertes | R66: Granulats hors pierre >90% | S66: Matière minérale de petite taille (granulats, gravillons, sable, grave, gravier, moellon, concassé, …) hors pierre | T66: =VLOOKUP(R66,'Comprendre la codification'!$D$45:$F$126,3,FALSE) -> 85 | W66: 4 - Matériaux et fibres d'origine végétal ou animal autres que bois et papier, carton | X66: Cat_4
P67: MAT_12 | Q67: 12 - Matériaux inertes | R67: Pierre calcaire >90% | S67: Matière minérale de grosse taille, hors granulats, gravillons, sable et hors pierres spécifiques comme l'ardoise | T67: =VLOOKUP(R67,'Comprendre la codification'!$D$45:$F$126,3,FALSE) -> 86 | W67: 5 - Plastique, matériaux et fibres synthétiques | X67: Cat_5
P68: MAT_12 | Q68: 12 - Matériaux inertes | R68: Lave >90% | T68: =VLOOKUP(R68,'Comprendre la codification'!$D$45:$F$126,3,FALSE) -> 87 | W68: 6 - Verre et parois vitrées | X68: Cat_6
P69: MAT_12 | Q69: 12 - Matériaux inertes | R69: Mélange bitumineux >90% | S69: Matière liquide à base de bitume | T69: =VLOOKUP(R69,'Comprendre la codification'!$D$45:$F$126,3,FALSE) -> 88 | W69: 10 - Autres mix matériaux ou matériaux non classés ou non spécifiés | X69: Cat_10
P70: MAT_12 | Q70: 12 - Matériaux inertes | R70: Terre cuite ou crue >90% | S70: Matière terre cuite | T70: =VLOOKUP(R70,'Comprendre la codification'!$D$45:$F$126,3,FALSE) -> 89 | W70: A_152
P71: MAT_12 | Q71: 12 - Matériaux inertes | R71: Béton >90% | S71: Assemblage de granulats (graviers, gravillons, sables, etc.), d'un liant (ciment, bitume, argile) d'adjuvants et d'eau | T71: =VLOOKUP(R71,'Comprendre la codification'!$D$45:$F$126,3,FALSE) -> 74 | W71: 1 - Métal | X71: =VLOOKUP(W71,$AT$2:$AU$13,2,FALSE) -> Cat_1
P72: MAT_12 | Q72: 12 - Matériaux inertes | R72: Béton cellulaire >90% | T72: =VLOOKUP(R72,'Comprendre la codification'!$D$45:$F$126,3,FALSE) -> 96 | W72: 2 - Bois et dérivés de bois | X72: Cat_2
P73: MAT_12 | Q73: 12 - Matériaux inertes | R73: Ciment >90% | T73: =VLOOKUP(R73,'Comprendre la codification'!$D$45:$F$126,3,FALSE) -> 90 | W73: 3 - Papier carton | X73: Cat_3
P74: MAT_12 | Q74: 12 - Matériaux inertes | R74: Granit >90% | S74: Matière à base de faïence ou grès | T74: =VLOOKUP(R74,'Comprendre la codification'!$D$45:$F$126,3,FALSE) -> 91 | W74: 4 - Matériaux et fibres d'origine végétal ou animal autres que bois et papier, carton | X74: Cat_4
P75: MAT_12 | Q75: 12 - Matériaux inertes | R75: Céramique >90% | T75: =VLOOKUP(R75,'Comprendre la codification'!$D$45:$F$126,3,FALSE) -> 97 | W75: 5 - Plastique, matériaux et fibres synthétiques | X75: Cat_5
P76: MAT_12 | Q76: 12 - Matériaux inertes | R76: Mortier >90% | T76: =VLOOKUP(R76,'Comprendre la codification'!$D$45:$F$126,3,FALSE) -> 92 | W76: 6 - Verre et parois vitrées | X76: Cat_6
P77: MAT_12 | Q77: 12 - Matériaux inertes | R77: Adjuvants >90% | T77: =VLOOKUP(R77,'Comprendre la codification'!$D$45:$F$126,3,FALSE) -> 93 | W77: 10 - Autres mix matériaux ou matériaux non classés ou non spécifiés | X77: Cat_10
P78: MAT_12 | Q78: 12 - Matériaux inertes | R78: Grès >90% | T78: =VLOOKUP(R78,'Comprendre la codification'!$D$45:$F$126,3,FALSE) -> 94 | W78: 12 - Matériaux inertes | X78: Cat_12
P79: MAT_12 | Q79: 12 - Matériaux inertes | R79: Chaux >90% | S79: Matériau obtenu par moulage d'agrégats divers, charges et liants (béton, pierre reconstituée) ou par synthèse chimique | T79: =VLOOKUP(R79,'Comprendre la codification'!$D$45:$F$126,3,FALSE) -> 95 | W79: A_155
P80: MAT_12 | Q80: 12 - Matériaux inertes | R80: Pierre artificielle >90% | T80: =VLOOKUP(R80,'Comprendre la codification'!$D$45:$F$126,3,FALSE) -> 98 | W80: 1 - Métal | X80: =VLOOKUP(W80,$AT$2:$AU$13,2,FALSE) -> Cat_1
W81: 2 - Bois et dérivés de bois | X81: Cat_2
W82: 3 - Papier carton | X82: Cat_3
W83: 4 - Matériaux et fibres d'origine végétal ou animal autres que bois et papier, carton | X83: Cat_4
W84: 5 - Plastique, matériaux et fibres synthétiques | X84: Cat_5
W85: 6 - Verre et parois vitrées | X85: Cat_6
W86: 10 - Autres mix matériaux ou matériaux non classés ou non spécifiés | X86: Cat_10
W87: 12 - Matériaux inertes | X87: Cat_12
W89: A_105
W90: 1 - Métal | X90: =VLOOKUP(W90,$AT$2:$AU$13,2,FALSE) -> Cat_1
W91: 2 - Bois et dérivés de bois | X91: Cat_2
W92: 3 - Papier carton | X92: Cat_3
W93: 4 - Matériaux et fibres d'origine végétal ou animal autres que bois et papier, carton | X93: Cat_4
W94: 5 - Plastique, matériaux et fibres synthétiques | X94: Cat_5
W95: 6 - Verre et parois vitrées | X95: Cat_6
W96: 10 - Autres mix matériaux ou matériaux non classés ou non spécifiés | X96: Cat_10
W97: 12 - Matériaux inertes | X97: Cat_12
D174: Textile et rembourrage en polyester >90%
B175: Code Mesure : 00 000 00 XXX 0

Sheet Codes éco-part
B1: Codes éco-participation communs aux 4 filières | F1: 0
B2: La table ci-dessous contient les codes éco-participations et les montants correspondants pour 2024
B5: Code éco-participation | C5: Montant € HT / article | D5: Montant € TTC / article (TVA à 20%)
B6: 002 | C6: 0.04 | D6: 0.05 | E6: =B6 -> 002
B7: 003 | C7: 0.08 | D7: 0.1 | E7: =B7 -> 003
B8: 004 | C8: 0.13 | D8: 0.16 | E8: 004
B9: 005 | C9: 0.17 | D9: 0.2 | E9: 005
B10: 006 | C10: 0.33 | D10: 0.4 | E10: 006
B11: 008 | C11: 0.83 | D11: 1 | E11: 008
B12: 009 | C12: 1.25 | D12: 1.5 | E12: 009
B13: 010 | C13: 1.67 | D13: 2 | E13: 010
B14: 011 | C14: 2.08 | D14: 2.5 | E14: 011
B15: 012 | C15: 2.5 | D15: 3 | E15: 012
B16: 013 | C16: 2.92 | D16: 3.5 | E16: 013
B17: 014 | C17: 3.33 | D17: 4 | E17: 014
B18: 015 | C18: 3.75 | D18: 4.5 | E18: 015
B19: 016 | C19: 4.17 | D19: 5 | E19: 016
B20: 017 | C20: 5.42 | D20: 6.5 | E20: 017
B21: 018 | C21: 5.83 | D21: 7 | E21: 018
B22: 019 | C22: 6.67 | D22: 8 | E22: 019
B23: 020 | C23: 7.5 | D23: 9 | E23: 020
B24: 021 | C24: 8.33 | D24: 10 | E24: 021
B25: 022 | C25: 10.83 | D25: 13 | E25: 022
B26: 023 | C26: 15 | D26: 18 | E26: 023
B27: 024 | C27: 19.17 | D27: 23 | E27: 024
B28: 026 | C28: 27.5 | D28: 33 | E28: 026
B29: 027 | C29: 31.67 | D29: 38 | E29: 027
B30: 029 | C30: 40 | D30: 48 | E30: 029
B31: 032 | C31: 52.5 | D31: 63 | E31: 032
B32: 036 | C32: 69.17 | D32: 83 | E32: 036
B33: 042 | C33: 5 | D33: 6 | E33: 042
B34: 043 | C34: 0.34 | D34: 0.41 | E34: 043
B35: 044 | C35: 0.68 | D35: 0.82 | E35: 044
B36: 047 | C36: 0.02 | D36: 0.02 | E36: 047
B37: 048 | C37: 0.05 | D37: 0.06 | E37: 048
B38: 049 | C38: 0.09 | D38: 0.11 | E38: 049
B39: 050 | C39: 0.15 | D39: 0.18 | E39: 050
B40: 051 | C40: 0.21 | D40: 0.25 | E40: 051
B41: 053 | C41: 0.5 | D41: 0.6 | E41: 053
B42: 054 | C42: 0.92 | D42: 1.1 | E42: 054
B43: 055 | C43: 0.96 | D43: 1.15 | E43: 055
B44: 056 | C44: 1 | D44: 1.2 | E44: 056
B45: 057 | C45: 1.42 | D45: 1.7 | E45: 057
B46: 058 | C46: 1.46 | D46: 1.75 | E46: 058
B47: 059 | C47: 1.5 | D47: 1.8 | E47: 059
B48: 060 | C48: 1.92 | D48: 2.3 | E48: 060
B49: 061 | C49: 2 | D49: 2.4 | E49: 061
B50: 062 | C50: 2.33 | D50: 2.8 | E50: 062
B51: 065 | C51: 4.58 | D51: 5.5 | E51: 065
B52: 067 | C52: 7.08 | D52: 8.5 | E52: 067
B53: 068 | C53: 7.92 | D53: 9.5 | E53: 068
B54: 069 | C54: 8.75 | D54: 10.5 | E54: 069
B55: 070 | C55: 9.17 | D55: 11 | E55: 070
B56: 072 | C56: 12.5 | D56: 15 | E56: 072
B57: 073 | C57: 17.5 | D57: 21 | E57: 073
B58: 074 | C58: 21.67 | D58: 26 | E58: 074
B59: 075 | C59: 26.67 | D59: 32 | E59: 075
B60: 079 | C60: 51.67 | D60: 62 | E60: 079
B61: 080 | C61: 61.67 | D61: 74 | E61: 080
B62: 083 | C62: 76.67 | D62: 92 | E62: 083
B63: 084 | C63: 86.67 | D63: 104 | E63: 084
B64: 088 | C64: 106.67 | D64: 128 | E64: 088
B65: 092 | C65: 0.03 | D65: 0.04 | E65: 092
B66: 094 | C66: 0.1 | D66: 0.12 | E66: 094
B67: 095 | C67: 0.25 | D67: 0.3 | E67: 095
B68: 096 | C68: 0.06 | D68: 0.07 | E68: 096
B69: 097 | C69: 0.12 | D69: 0.14 | E69: 097
B70: 098 | C70: 0.14 | D70: 0.17 | E70: 098
B71: 099 | C71: 0.16 | D71: 0.19 | E71: =B71 -> 099
B72: 100 | C72: 0.18 | D72: 0.22 | E72: 100
B73: 101 | C73: 0.2 | D73: 0.24 | E73: 101
B74: 103 | C74: 0.27 | D74: 0.32 | E74: 103
B75: 104 | C75: 0.31 | D75: 0.37 | E75: 104
B76: 105 | C76: 0.4 | D76: 0.48 | E76: 105
B77: 106 | C77: 0.46 | D77: 0.55 | E77: 106
B78: 107 | C78: 0.47 | D78: 0.56 | E78: 107
B79: 108 | C79: 0.49 | D79: 0.59 | E79: 108
B80: 109 | C80: 0.51 | D80: 0.61 | E80: 109
B81: 110 | C81: 0.67 | D81: 0.8 | E81: 110
B82: 111 | C82: 0.69 | D82: 0.83 | E82: 111
B83: 112 | C83: 0.81 | D83: 0.97 | E83: 112
B84: 113 | C84: 1.08 | D84: 1.3 | E84: 113
B85: 114 | C85: 1.21 | D85: 1.45 | E85: 114
B86: 115 | C86: 1.33 | D86: 1.6 | E86: 115
B87: 116 | C87: 1.71 | D87: 2.05 | E87: 116
B88: 117 | C88: 1.83 | D88: 2.2 | E88: 117
B89: 118 | C89: 2.25 | D89: 2.7 | E89: 118
B90: 119 | C90: 2.67 | D90: 3.2 | E90: 119
B91: 120 | C91: 2.75 | D91: 3.3 | E91: 120
B92: 121 | C92: 3.08 | D92: 3.7 | E92: 121
B93: 122 | C93: 3.25 | D93: 3.9 | E93: 122
B94: 123 | C94: 3.58 | D94: 4.3 | E94: 123
B95: 124 | C95: 3.67 | D95: 4.4 | E95: 124
B96: 125 | C96: 3.92 | D96: 4.7 | E96: 125
B97: 126 | C97: 4.42 | D97: 5.3 | E97: 126
B98: 127 | C98: 4.5 | D98: 5.4 | E98: 127
B99: 128 | C99: 4.67 | D99: 5.6 | E99: 128
B100: 129 | C100: 4.75 | D100: 5.7 | E100: 129
B101: 130 | C101: 4.83 | D101: 5.8 | E101: 130
B102: 131 | C102: 5.17 | D102: 6.2 | E102: 131
B103: 132 | C103: 5.33 | D103: 6.4 | E103: 132
B104: 133 | C104: 5.58 | D104: 6.7 | E104: 133
B105: 134 | C105: 6.08 | D105: 7.3 | E105: 134
B106: 135 | C106: 6.25 | D106: 7.5 | E106: 135
B107: 136 | C107: 6.92 | D107: 8.3 | E107: 136
B108: 137 | C108: 8.83 | D108: 10.6 | E108: 137
B109: 138 | C109: 10 | D109: 12 | E109: 138
B110: 139 | C110: 10.42 | D110: 12.5 | E110: 139
B111: 140 | C111: 11.25 | D111: 13.5 | E111: 140
B112: 141 | C112: 11.67 | D112: 14 | E112: 141
B113: 142 | C113: 13.33 | D113: 16 | E113: 142
B114: 143 | C114: 14.17 | D114: 17 | E114: 143
B115: 144 | C115: 15.42 | D115: 18.5 | E115: 144
B116: 145 | C116: 16.25 | D116: 19.5 | E116: 145
B117: 146 | C117: 17.08 | D117: 20.5 | E117: 146
B118: 147 | C118: 18.33 | D118: 22 | E118: 147
B119: 148 | C119: 20 | D119: 24 | E119: 148
B120: 149 | C120: 20.83 | D120: 25 | E120: 149
B121: 150 | C121: 22.5 | D121: 27 | E121: 150
B122: 151 | C122: 25 | D122: 30 | E122: 151
B123: 152 | C123: 26.92 | D123: 32.3 | E123: 152
B124: 153 | C124: 30 | D124: 36 | E124: 153
B125: 154 | C125: 30.83 | D125: 37 | E125: 154
B126: 155 | C126: 31.25 | D126: 37.5 | E126: 155
B127: 156 | C127: 32.17 | D127: 38.6 | E127: 156
B128: 157 | C128: 32.5 | D128: 39 | E128: 157
B129: 158 | C129: 34.17 | D129: 41 | E129: 158
B130: 159 | C130: 35 | D130: 42 | E130: 159
B131: 160 | C131: 35.42 | D131: 42.5 | E131: 160
B132: 161 | C132: 37.42 | D132: 44.9 | E132: 161
B133: 162 | C133: 37.5 | D133: 45 | E133: 162
B134: 163 | C134: 39.17 | D134: 47 | E134: 163
B135: 164 | C135: 42.5 | D135: 51 | E135: =B135 -> 164
B136: 165 | C136: 42.67 | D136: 51.2 | E136: 165
B137: 166 | C137: 42.92 | D137: 51.5 | E137: 166
B138: 167 | C138: 43.33 | D138: 52 | E138: 167
B139: 168 | C139: 43.75 | D139: 52.5 | E139: 168
B140: 169 | C140: 45 | D140: 54 | E140: 169
B141: 170 | C141: 45.42 | D141: 54.5 | E141: 170
B142: 171 | C142: 47.5 | D142: 57 | E142: 171
B143: 172 | C143: 47.92 | D143: 57.5 | E143: 172
B144: 173 | C144: 50 | D144: 60 | E144: 173
B145: 174 | C145: 50.42 | D145: 60.5 | E145: 174
B146: 175 | C146: 53.17 | D146: 63.8 | E146: 175
B147: 176 | C147: 55.42 | D147: 66.5 | E147: 176
B148: 177 | C148: 55.83 | D148: 67 | E148: 177
B149: 178 | C149: 56.25 | D149: 67.5 | E149: 178
B150: 179 | C150: 58.42 | D150: 70.1 | E150: 179
B151: 180 | C151: 60 | D151: 72 | E151: 180
B152: 181 | C152: 60.42 | D152: 72.5 | E152: 181
B153: 182 | C153: 62.5 | D153: 75 | E153: 182
B154: 183 | C154: 63.67 | D154: 76.4 | E154: 183
B155: 184 | C155: 64.17 | D155: 77 | E155: 184
B156: 185 | C156: 65.42 | D156: 78.5 | E156: 185
B157: 186 | C157: 68.33 | D157: 82 | E157: 186
B158: 187 | C158: 68.75 | D158: 82.5 | E158: 187
B159: 188 | C159: 68.92 | D159: 82.7 | E159: 188
B160: 189 | C160: 72.5 | D160: 87 | E160: 189
B161: 190 | C161: 72.92 | D161: 87.5 | E161: 190
B162: 191 | C162: 74.17 | D162: 89 | E162: 191
B163: 192 | C163: 75 | D163: 90 | E163: 192
B164: 193 | C164: 75.42 | D164: 90.5 | E164: 193
B165: 194 | C165: 77.92 | D165: 93.5 | E165: 194
B166: 195 | C166: 79.42 | D166: 95.3 | E166: 195
B167: 196 | C167: 80.83 | D167: 97 | E167: 196
B168: 197 | C168: 81.25 | D168: 97.5 | E168: 197
B169: 198 | C169: 84.17 | D169: 101 | E169: 198
B170: 199 | C170: 84.67 | D170: 101.6 | E170: 199
B171: 200 | C171: 85 | D171: 102 | E171: 200
B172: 201 | C172: 85.42 | D172: 102.5 | E172: 201
B173: 202 | C173: 87.5 | D173: 105 | E173: 202
B174: 203 | C174: 89.92 | D174: 107.9 | E174: 203
B175: 204 | C175: 93.75 | D175: 112.5 | E175: 204
B176: 205 | C176: 95.17 | D176: 114.2 | E176: 205
B177: 206 | C177: 95.42 | D177: 114.5 | E177: 206
B178: 207 | C178: 100 | D178: 120 | E178: 207
B179: 208 | C179: 100.42 | D179: 120.5 | E179: 208
B180: 209 | C180: 104.17 | D180: 125 | E180: 209
B181: 210 | C181: 105.42 | D181: 126.5 | E181: 210
B182: 211 | C182: 105.67 | D182: 126.8 | E182: 211
B183: 212 | C183: 106.25 | D183: 127.5 | E183: 212
B184: 213 | C184: 110.92 | D184: 133.1 | E184: 213
B185: 214 | C185: 112.5 | D185: 135 | E185: 214
B186: 215 | C186: 112.92 | D186: 135.5 | E186: 215
B187: 216 | C187: 115.42 | D187: 138.5 | E187: 216
B188: 217 | C188: 117.92 | D188: 141.5 | E188: 217
B189: 218 | C189: 118.75 | D189: 142.5 | E189: 218
B190: 219 | C190: 121.67 | D190: 146 | E190: 219
B191: 220 | C191: 125 | D191: 150 | E191: 220
B192: 221 | C192: 125.42 | D192: 150.5 | E192: 221
B193: 222 | C193: 129.17 | D193: 155 | E193: 222
B194: 223 | C194: 130.42 | D194: 156.5 | E194: 223
B195: 224 | C195: 131.25 | D195: 157.5 | E195: 224
B196: 225 | C196: 135.42 | D196: 162.5 | E196: 225
B197: 226 | C197: 139.17 | D197: 167 | E197: 226
B198: 227 | C198: 140.42 | D198: 168.5 | E198: 227
B199: 228 | C199: 145.42 | D199: 174.5 | E199: =B199 -> 228
B200: 229 | C200: 147.92 | D200: 177.5 | E200: 229
B201: 230 | C201: 151.67 | D201: 182 | E201: 230
B202: 231 | C202: 155.42 | D202: 186.5 | E202: 231
... 661 more rows

Sheet Codes
A1: REP | B1: Cat. REP | C1: Code Ecomaison | D1: Code Ecomodulé | E1: Rayon | F1: Catégorie de produits | G1: Matériaux | H1: Tranches de dimensions | I1: Mesure | J1: Tarifs | K1: Eco-participation 2023 | L1: Code Eco part | M1: Tarif TTC
A2: REP ABJ | B2: 3 | C2: 21100000000 | E2: Articles de bricolage | F2: Outillage à main et leurs accessoires | G2: Non connu ou non spécifié par l'entreprise | H2: Eléments de toutes dimensions et poids | I2: € / Tonne | J2: 215 | K2: 215 | L2: 498 | M2: 258
A3: REP ABJ | B3: 3 | C3: 21100000001 | D3: modulé | E3: Articles de bricolage | F3: Outillage à main et leurs accessoires | G3: Non connu ou non spécifié par l'entreprise | H3: Eléments de toutes dimensions et poids | I3: € / Tonne | J3: 215 | K3: 215 | L3: 498 | M3: 258
A4: REP ABJ | B4: 3 | C4: 21100000200 | E4: Articles de bricolage | F4: Outillage à main et leurs accessoires | G4: Non connu ou non spécifié par l'entreprise | H4: Inférieur strictement à 0,5 kg | I4: €/unité | J4: 0.05 | K4: 0.05 | L4: 048 | M4: 0.06
A5: REP ABJ | B5: 3 | C5: 21100000201 | D5: modulé | E5: Articles de bricolage | F5: Outillage à main et leurs accessoires | G5: Non connu ou non spécifié par l'entreprise | H5: Inférieur strictement à 0,5 kg | I5: €/unité | J5: 0.05 | K5: 0.05 | L5: 048 | M5: 0.06
A6: REP ABJ | B6: 3 | C6: 21100000210 | E6: Articles de bricolage | F6: Outillage à main et leurs accessoires | G6: Non connu ou non spécifié par l'entreprise | H6: Compris entre 0,5 kg et 1 kg exclus | I6: €/unité | J6: 0.16 | K6: 0.16 | L6: 099 | M6: 0.192
A7: REP ABJ | B7: 3 | C7: 21100000211 | D7: modulé | E7: Articles de bricolage | F7: Outillage à main et leurs accessoires | G7: Non connu ou non spécifié par l'entreprise | H7: Compris entre 0,5 kg et 1 kg exclus | I7: €/unité | J7: 0.16 | K7: 0.16 | L7: 099 | M7: 0.192
A8: REP ABJ | B8: 3 | C8: 21100000220 | E8: Articles de bricolage | F8: Outillage à main et leurs accessoires | G8: Non connu ou non spécifié par l'entreprise | H8: Compris entre 1 kg et 2 kg exclus | I8: €/unité | J8: 0.32 | K8: 0.32 | L8: 447 | M8: 0.384
A9: REP ABJ | B9: 3 | C9: 21100000221 | D9: modulé | E9: Articles de bricolage | F9: Outillage à main et leurs accessoires | G9: Non connu ou non spécifié par l'entreprise | H9: Compris entre 1 kg et 2 kg exclus | I9: €/unité | J9: 0.32 | K9: 0.32 | L9: 447 | M9: 0.384
A10: REP ABJ | B10: 3 | C10: 21100000520 | E10: Articles de bricolage | F10: Outillage à main et leurs accessoires | G10: Non connu ou non spécifié par l'entreprise | H10: Compris entre 2 kg et 3 kg exclus | I10: €/unité | J10: 0.54 | K10: 0.54 | L10: 500 | M10: 0.648
A11: REP ABJ | B11: 3 | C11: 21100000521 | D11: modulé | E11: Articles de bricolage | F11: Outillage à main et leurs accessoires | G11: Non connu ou non spécifié par l'entreprise | H11: Compris entre 2 kg et 3 kg exclus | I11: €/unité | J11: 0.54 | K11: 0.54 | L11: 500 | M11: 0.648
A12: REP ABJ | B12: 3 | C12: 21100000530 | E12: Articles de bricolage | F12: Outillage à main et leurs accessoires | G12: Non connu ou non spécifié par l'entreprise | H12: Compris entre 3 kg et 5 kg exclus | I12: €/unité | J12: 0.86 | K12: 0.86 | L12: 501 | M12: 1.032
A13: REP ABJ | B13: 3 | C13: 21100000531 | D13: modulé | E13: Articles de bricolage | F13: Outillage à main et leurs accessoires | G13: Non connu ou non spécifié par l'entreprise | H13: Compris entre 3 kg et 5 kg exclus | I13: €/unité | J13: 0.86 | K13: 0.86 | L13: 501 | M13: 1.032
A14: REP ABJ | B14: 3 | C14: 21100000540 | E14: Articles de bricolage | F14: Outillage à main et leurs accessoires | G14: Non connu ou non spécifié par l'entreprise | H14: Compris entre 5 kg et 7 kg exclus | I14: €/unité | J14: 1.51 | K14: 1.51 | L14: 502 | M14: 1.812
A15: REP ABJ | B15: 3 | C15: 21100000541 | D15: modulé | E15: Articles de bricolage | F15: Outillage à main et leurs accessoires | G15: Non connu ou non spécifié par l'entreprise | H15: Compris entre 5 kg et 7 kg exclus | I15: €/unité | J15: 1.51 | K15: 1.51 | L15: 502 | M15: 1.812
A16: REP ABJ | B16: 3 | C16: 21100010000 | E16: Articles de bricolage | F16: Outillage à main et leurs accessoires | G16: Assemblage de bois, dérivés de bois à plus de 50% avec d'autres matériaux ou bois composite (hors verre) | H16: Eléments de toutes dimensions et poids | I16: € / Tonne | J16: 45 | K16: 45 | L16: 169 | M16: 54
A17: REP ABJ | B17: 3 | C17: 21100010001 | D17: modulé | E17: Articles de bricolage | F17: Outillage à main et leurs accessoires | G17: Assemblage de bois, dérivés de bois à plus de 50% avec d'autres matériaux ou bois composite (hors verre) | H17: Eléments de toutes dimensions et poids | I17: € / Tonne | J17: 45 | K17: 45 | L17: 169 | M17: 54
A18: REP ABJ | B18: 3 | C18: 21100010200 | E18: Articles de bricolage | F18: Outillage à main et leurs accessoires | G18: Assemblage de bois, dérivés de bois à plus de 50% avec d'autres matériaux ou bois composite (hors verre) | H18: Inférieur strictement à 0,5 kg | I18: €/unité | J18: 0.01 | K18: 0.01 | L18: 260 | M18: 0.012
A19: REP ABJ | B19: 3 | C19: 21100010201 | D19: modulé | E19: Articles de bricolage | F19: Outillage à main et leurs accessoires | G19: Assemblage de bois, dérivés de bois à plus de 50% avec d'autres matériaux ou bois composite (hors verre) | H19: Inférieur strictement à 0,5 kg | I19: €/unité | J19: 0.01 | K19: 0.01 | L19: 260 | M19: 0.012
A20: REP ABJ | B20: 3 | C20: 21100010210 | E20: Articles de bricolage | F20: Outillage à main et leurs accessoires | G20: Assemblage de bois, dérivés de bois à plus de 50% avec d'autres matériaux ou bois composite (hors verre) | H20: Compris entre 0,5 kg et 1 kg exclus | I20: €/unité | J20: 0.03 | K20: 0.03 | L20: 092 | M20: 0.036
A21: REP ABJ | B21: 3 | C21: 21100010211 | D21: modulé | E21: Articles de bricolage | F21: Outillage à main et leurs accessoires | G21: Assemblage de bois, dérivés de bois à plus de 50% avec d'autres matériaux ou bois composite (hors verre) | H21: Compris entre 0,5 kg et 1 kg exclus | I21: €/unité | J21: 0.03 | K21: 0.03 | L21: 092 | M21: 0.036
A22: REP ABJ | B22: 3 | C22: 21100010220 | E22: Articles de bricolage | F22: Outillage à main et leurs accessoires | G22: Assemblage de bois, dérivés de bois à plus de 50% avec d'autres matériaux ou bois composite (hors verre) | H22: Compris entre 1 kg et 2 kg exclus | I22: €/unité | J22: 0.07 | K22: 0.07 | L22: 247 | M22: 0.084
A23: REP ABJ | B23: 3 | C23: 21100010221 | D23: modulé | E23: Articles de bricolage | F23: Outillage à main et leurs accessoires | G23: Assemblage de bois, dérivés de bois à plus de 50% avec d'autres matériaux ou bois composite (hors verre) | H23: Compris entre 1 kg et 2 kg exclus | I23: €/unité | J23: 0.07 | K23: 0.07 | L23: 247 | M23: 0.084
A24: REP ABJ | B24: 3 | C24: 21100010520 | E24: Articles de bricolage | F24: Outillage à main et leurs accessoires | G24: Assemblage de bois, dérivés de bois à plus de 50% avec d'autres matériaux ou bois composite (hors verre) | H24: Compris entre 2 kg et 3 kg exclus | I24: €/unité | J24: 0.11 | K24: 0.11 | L24: 262 | M24: 0.132
A25: REP ABJ | B25: 3 | C25: 21100010521 | D25: modulé | E25: Articles de bricolage | F25: Outillage à main et leurs accessoires | G25: Assemblage de bois, dérivés de bois à plus de 50% avec d'autres matériaux ou bois composite (hors verre) | H25: Compris entre 2 kg et 3 kg exclus | I25: €/unité | J25: 0.11 | K25: 0.11 | L25: 262 | M25: 0.132
A26: REP ABJ | B26: 3 | C26: 21100010530 | E26: Articles de bricolage | F26: Outillage à main et leurs accessoires | G26: Assemblage de bois, dérivés de bois à plus de 50% avec d'autres matériaux ou bois composite (hors verre) | H26: Compris entre 3 kg et 5 kg exclus | I26: €/unité | J26: 0.18 | K26: 0.18 | L26: 100 | M26: 0.216
A27: REP ABJ | B27: 3 | C27: 21100010531 | D27: modulé | E27: Articles de bricolage | F27: Outillage à main et leurs accessoires | G27: Assemblage de bois, dérivés de bois à plus de 50% avec d'autres matériaux ou bois composite (hors verre) | H27: Compris entre 3 kg et 5 kg exclus | I27: €/unité | J27: 0.18 | K27: 0.18 | L27: 100 | M27: 0.216
A28: REP ABJ | B28: 3 | C28: 21100010540 | E28: Articles de bricolage | F28: Outillage à main et leurs accessoires | G28: Assemblage de bois, dérivés de bois à plus de 50% avec d'autres matériaux ou bois composite (hors verre) | H28: Compris entre 5 kg et 7 kg exclus | I28: €/unité | J28: 0.32 | K28: 0.32 | L28: 447 | M28: 0.384
A29: REP ABJ | B29: 3 | C29: 21100010541 | D29: modulé | E29: Articles de bricolage | F29: Outillage à main et leurs accessoires | G29: Assemblage de bois, dérivés de bois à plus de 50% avec d'autres matériaux ou bois composite (hors verre) | H29: Compris entre 5 kg et 7 kg exclus | I29: €/unité | J29: 0.32 | K29: 0.32 | L29: 447 | M29: 0.384
A30: REP ABJ | B30: 3 | C30: 21100020000 | E30: Articles de bricolage | F30: Outillage à main et leurs accessoires | G30: Assemblage avec métal >50% et autres matériaux | H30: Eléments de toutes dimensions et poids | I30: € / Tonne | J30: 10 | K30: 10 | L30: 138 | M30: 12
A31: REP ABJ | B31: 3 | C31: 21100020001 | D31: modulé | E31: Articles de bricolage | F31: Outillage à main et leurs accessoires | G31: Assemblage avec métal >50% et autres matériaux | H31: Eléments de toutes dimensions et poids | I31: € / Tonne | J31: 10 | K31: 10 | L31: 138 | M31: 12
A32: REP ABJ | B32: 3 | C32: 21100020200 | E32: Articles de bricolage | F32: Outillage à main et leurs accessoires | G32: Assemblage avec métal >50% et autres matériaux | H32: Inférieur strictement à 0,5 kg | I32: €/unité | J32: 0.01 | K32: 0.01 | L32: 260 | M32: 0.012
A33: REP ABJ | B33: 3 | C33: 21100020201 | D33: modulé | E33: Articles de bricolage | F33: Outillage à main et leurs accessoires | G33: Assemblage avec métal >50% et autres matériaux | H33: Inférieur strictement à 0,5 kg | I33: €/unité | J33: 0.01 | K33: 0.01 | L33: 260 | M33: 0.012
A34: REP ABJ | B34: 3 | C34: 21100020210 | E34: Articles de bricolage | F34: Outillage à main et leurs accessoires | G34: Assemblage avec métal >50% et autres matériaux | H34: Compris entre 0,5 kg et 1 kg exclus | I34: €/unité | J34: 0.01 | K34: 0.01 | L34: 260 | M34: 0.012
A35: REP ABJ | B35: 3 | C35: 21100020211 | D35: modulé | E35: Articles de bricolage | F35: Outillage à main et leurs accessoires | G35: Assemblage avec métal >50% et autres matériaux | H35: Compris entre 0,5 kg et 1 kg exclus | I35: €/unité | J35: 0.01 | K35: 0.01 | L35: 260 | M35: 0.012
A36: REP ABJ | B36: 3 | C36: 21100020220 | E36: Articles de bricolage | F36: Outillage à main et leurs accessoires | G36: Assemblage avec métal >50% et autres matériaux | H36: Compris entre 1 kg et 2 kg exclus | I36: €/unité | J36: 0.02 | K36: 0.02 | L36: 047 | M36: 0.024
A37: REP ABJ | B37: 3 | C37: 21100020221 | D37: modulé | E37: Articles de bricolage | F37: Outillage à main et leurs accessoires | G37: Assemblage avec métal >50% et autres matériaux | H37: Compris entre 1 kg et 2 kg exclus | I37: €/unité | J37: 0.02 | K37: 0.02 | L37: 047 | M37: 0.024
A38: REP ABJ | B38: 3 | C38: 21100020520 | E38: Articles de bricolage | F38: Outillage à main et leurs accessoires | G38: Assemblage avec métal >50% et autres matériaux | H38: Compris entre 2 kg et 3 kg exclus | I38: €/unité | J38: 0.03 | K38: 0.03 | L38: 092 | M38: 0.036
A39: REP ABJ | B39: 3 | C39: 21100020521 | D39: modulé | E39: Articles de bricolage | F39: Outillage à main et leurs accessoires | G39: Assemblage avec métal >50% et autres matériaux | H39: Compris entre 2 kg et 3 kg exclus | I39: €/unité | J39: 0.03 | K39: 0.03 | L39: 092 | M39: 0.036
A40: REP ABJ | B40: 3 | C40: 21100020530 | E40: Articles de bricolage | F40: Outillage à main et leurs accessoires | G40: Assemblage avec métal >50% et autres matériaux | H40: Compris entre 3 kg et 5 kg exclus | I40: €/unité | J40: 0.04 | K40: 0.04 | L40: 002 | M40: 0.048
A41: REP ABJ | B41: 3 | C41: 21100020531 | D41: modulé | E41: Articles de bricolage | F41: Outillage à main et leurs accessoires | G41: Assemblage avec métal >50% et autres matériaux | H41: Compris entre 3 kg et 5 kg exclus | I41: €/unité | J41: 0.04 | K41: 0.04 | L41: 002 | M41: 0.048
A42: REP ABJ | B42: 3 | C42: 21100020540 | E42: Articles de bricolage | F42: Outillage à main et leurs accessoires | G42: Assemblage avec métal >50% et autres matériaux | H42: Compris entre 5 kg et 7 kg exclus | I42: €/unité | J42: 0.07 | K42: 0.07 | L42: 247 | M42: 0.084
A43: REP ABJ | B43: 3 | C43: 21100020541 | D43: modulé | E43: Articles de bricolage | F43: Outillage à main et leurs accessoires | G43: Assemblage avec métal >50% et autres matériaux | H43: Compris entre 5 kg et 7 kg exclus | I43: €/unité | J43: 0.07 | K43: 0.07 | L43: 247 | M43: 0.084
A44: REP ABJ | B44: 3 | C44: 21100040000 | E44: Articles de bricolage | F44: Outillage à main et leurs accessoires | G44: Matériaux bio sourcés ou textiles non synthétiques >50% | H44: Eléments de toutes dimensions et poids | I44: € / Tonne | J44: 215 | K44: 215 | L44: 498 | M44: 258
A45: REP ABJ | B45: 3 | C45: 21100040001 | D45: modulé | E45: Articles de bricolage | F45: Outillage à main et leurs accessoires | G45: Matériaux bio sourcés ou textiles non synthétiques >50% | H45: Eléments de toutes dimensions et poids | I45: € / Tonne | J45: 215 | K45: 215 | L45: 498 | M45: 258
A46: REP ABJ | B46: 3 | C46: 21100040200 | E46: Articles de bricolage | F46: Outillage à main et leurs accessoires | G46: Matériaux bio sourcés ou textiles non synthétiques >50% | H46: Inférieur strictement à 0,5 kg | I46: €/unité | J46: 0.05 | K46: 0.05 | L46: 048 | M46: 0.06
A47: REP ABJ | B47: 3 | C47: 21100040201 | D47: modulé | E47: Articles de bricolage | F47: Outillage à main et leurs accessoires | G47: Matériaux bio sourcés ou textiles non synthétiques >50% | H47: Inférieur strictement à 0,5 kg | I47: €/unité | J47: 0.05 | K47: 0.05 | L47: 048 | M47: 0.06
A48: REP ABJ | B48: 3 | C48: 21100040210 | E48: Articles de bricolage | F48: Outillage à main et leurs accessoires | G48: Matériaux bio sourcés ou textiles non synthétiques >50% | H48: Compris entre 0,5 kg et 1 kg exclus | I48: €/unité | J48: 0.16 | K48: 0.16 | L48: 099 | M48: 0.192
A49: REP ABJ | B49: 3 | C49: 21100040211 | D49: modulé | E49: Articles de bricolage | F49: Outillage à main et leurs accessoires | G49: Matériaux bio sourcés ou textiles non synthétiques >50% | H49: Compris entre 0,5 kg et 1 kg exclus | I49: €/unité | J49: 0.16 | K49: 0.16 | L49: 099 | M49: 0.192
A50: REP ABJ | B50: 3 | C50: 21100040220 | E50: Articles de bricolage | F50: Outillage à main et leurs accessoires | G50: Matériaux bio sourcés ou textiles non synthétiques >50% | H50: Compris entre 1 kg et 2 kg exclus | I50: €/unité | J50: 0.32 | K50: 0.32 | L50: 447 | M50: 0.384
A51: REP ABJ | B51: 3 | C51: 21100040221 | D51: modulé | E51: Articles de bricolage | F51: Outillage à main et leurs accessoires | G51: Matériaux bio sourcés ou textiles non synthétiques >50% | H51: Compris entre 1 kg et 2 kg exclus | I51: €/unité | J51: 0.32 | K51: 0.32 | L51: 447 | M51: 0.384
A52: REP ABJ | B52: 3 | C52: 21100040520 | E52: Articles de bricolage | F52: Outillage à main et leurs accessoires | G52: Matériaux bio sourcés ou textiles non synthétiques >50% | H52: Compris entre 2 kg et 3 kg exclus | I52: €/unité | J52: 0.54 | K52: 0.54 | L52: 500 | M52: 0.648
A53: REP ABJ | B53: 3 | C53: 21100040521 | D53: modulé | E53: Articles de bricolage | F53: Outillage à main et leurs accessoires | G53: Matériaux bio sourcés ou textiles non synthétiques >50% | H53: Compris entre 2 kg et 3 kg exclus | I53: €/unité | J53: 0.54 | K53: 0.54 | L53: 500 | M53: 0.648
A54: REP ABJ | B54: 3 | C54: 21100040530 | E54: Articles de bricolage | F54: Outillage à main et leurs accessoires | G54: Matériaux bio sourcés ou textiles non synthétiques >50% | H54: Compris entre 3 kg et 5 kg exclus | I54: €/unité | J54: 0.86 | K54: 0.86 | L54: 501 | M54: 1.032
A55: REP ABJ | B55: 3 | C55: 21100040531 | D55: modulé | E55: Articles de bricolage | F55: Outillage à main et leurs accessoires | G55: Matériaux bio sourcés ou textiles non synthétiques >50% | H55: Compris entre 3 kg et 5 kg exclus | I55: €/unité | J55: 0.86 | K55: 0.86 | L55: 501 | M55: 1.032
A56: REP ABJ | B56: 3 | C56: 21100040540 | E56: Articles de bricolage | F56: Outillage à main et leurs accessoires | G56: Matériaux bio sourcés ou textiles non synthétiques >50% | H56: Compris entre 5 kg et 7 kg exclus | I56: €/unité | J56: 1.51 | K56: 1.51 | L56: 502 | M56: 1.812
A57: REP ABJ | B57: 3 | C57: 21100040541 | D57: modulé | E57: Articles de bricolage | F57: Outillage à main et leurs accessoires | G57: Matériaux bio sourcés ou textiles non synthétiques >50% | H57: Compris entre 5 kg et 7 kg exclus | I57: €/unité | J57: 1.51 | K57: 1.51 | L57: 502 | M57: 1.812
A58: REP ABJ | B58: 3 | C58: 21100050000 | E58: Articles de bricolage | F58: Outillage à main et leurs accessoires | G58: Plastiques ou autres matériaux synthétiques >50% | H58: Eléments de toutes dimensions et poids | I58: € / Tonne | J58: 215 | K58: 215 | L58: 498 | M58: 258
A59: REP ABJ | B59: 3 | C59: 21100050001 | D59: modulé | E59: Articles de bricolage | F59: Outillage à main et leurs accessoires | G59: Plastiques ou autres matériaux synthétiques >50% | H59: Eléments de toutes dimensions et poids | I59: € / Tonne | J59: 215 | K59: 215 | L59: 498 | M59: 258
A60: REP ABJ | B60: 3 | C60: 21100050200 | E60: Articles de bricolage | F60: Outillage à main et leurs accessoires | G60: Plastiques ou autres matériaux synthétiques >50% | H60: Inférieur strictement à 0,5 kg | I60: €/unité | J60: 0.05 | K60: 0.05 | L60: 048 | M60: 0.06
A61: REP ABJ | B61: 3 | C61: 21100050201 | D61: modulé | E61: Articles de bricolage | F61: Outillage à main et leurs accessoires | G61: Plastiques ou autres matériaux synthétiques >50% | H61: Inférieur strictement à 0,5 kg | I61: €/unité | J61: 0.05 | K61: 0.05 | L61: 048 | M61: 0.06
A62: REP ABJ | B62: 3 | C62: 21100050210 | E62: Articles de bricolage | F62: Outillage à main et leurs accessoires | G62: Plastiques ou autres matériaux synthétiques >50% | H62: Compris entre 0,5 kg et 1 kg exclus | I62: €/unité | J62: 0.16 | K62: 0.16 | L62: 099 | M62: 0.192
A63: REP ABJ | B63: 3 | C63: 21100050211 | D63: modulé | E63: Articles de bricolage | F63: Outillage à main et leurs accessoires | G63: Plastiques ou autres matériaux synthétiques >50% | H63: Compris entre 0,5 kg et 1 kg exclus | I63: €/unité | J63: 0.16 | K63: 0.16 | L63: 099 | M63: 0.192
A64: REP ABJ | B64: 3 | C64: 21100050220 | E64: Articles de bricolage | F64: Outillage à main et leurs accessoires | G64: Plastiques ou autres matériaux synthétiques >50% | H64: Compris entre 1 kg et 2 kg exclus | I64: €/unité | J64: 0.32 | K64: 0.32 | L64: 447 | M64: 0.384
A65: REP ABJ | B65: 3 | C65: 21100050221 | D65: modulé | E65: Articles de bricolage | F65: Outillage à main et leurs accessoires | G65: Plastiques ou autres matériaux synthétiques >50% | H65: Compris entre 1 kg et 2 kg exclus | I65: €/unité | J65: 0.32 | K65: 0.32 | L65: 447 | M65: 0.384
A66: REP ABJ | B66: 3 | C66: 21100050520 | E66: Articles de bricolage | F66: Outillage à main et leurs accessoires | G66: Plastiques ou autres matériaux synthétiques >50% | H66: Compris entre 2 kg et 3 kg exclus | I66: €/unité | J66: 0.54 | K66: 0.54 | L66: 500 | M66: 0.648
A67: REP ABJ | B67: 3 | C67: 21100050521 | D67: modulé | E67: Articles de bricolage | F67: Outillage à main et leurs accessoires | G67: Plastiques ou autres matériaux synthétiques >50% | H67: Compris entre 2 kg et 3 kg exclus | I67: €/unité | J67: 0.54 | K67: 0.54 | L67: 500 | M67: 0.648
A68: REP ABJ | B68: 3 | C68: 21100050530 | E68: Articles de bricolage | F68: Outillage à main et leurs accessoires | G68: Plastiques ou autres matériaux synthétiques >50% | H68: Compris entre 3 kg et 5 kg exclus | I68: €/unité | J68: 0.86 | K68: 0.86 | L68: 501 | M68: 1.032
A69: REP ABJ | B69: 3 | C69: 21100050531 | D69: modulé | E69: Articles de bricolage | F69: Outillage à main et leurs accessoires | G69: Plastiques ou autres matériaux synthétiques >50% | H69: Compris entre 3 kg et 5 kg exclus | I69: €/unité | J69: 0.86 | K69: 0.86 | L69: 501 | M69: 1.032
A70: REP ABJ | B70: 3 | C70: 21100050540 | E70: Articles de bricolage | F70: Outillage à main et leurs accessoires | G70: Plastiques ou autres matériaux synthétiques >50% | H70: Compris entre 5 kg et 7 kg exclus | I70: €/unité | J70: 1.51 | K70: 1.51 | L70: 502 | M70: 1.812
A71: REP ABJ | B71: 3 | C71: 21100050541 | D71: modulé | E71: Articles de bricolage | F71: Outillage à main et leurs accessoires | G71: Plastiques ou autres matériaux synthétiques >50% | H71: Compris entre 5 kg et 7 kg exclus | I71: €/unité | J71: 1.51 | K71: 1.51 | L71: 502 | M71: 1.812
A72: REP ABJ | B72: 3 | C72: 21100060000 | E72: Articles de bricolage | F72: Outillage à main et leurs accessoires | G72: Matériaux d'origine animale >50% | H72: Eléments de toutes dimensions et poids | I72: € / Tonne | J72: 215 | K72: 215 | L72: 498 | M72: 258
A73: REP ABJ | B73: 3 | C73: 21100060001 | D73: modulé | E73: Articles de bricolage | F73: Outillage à main et leurs accessoires | G73: Matériaux d'origine animale >50% | H73: Eléments de toutes dimensions et poids | I73: € / Tonne | J73: 215 | K73: 215 | L73: 498 | M73: 258
A74: REP ABJ | B74: 3 | C74: 21100060200 | E74: Articles de bricolage | F74: Outillage à main et leurs accessoires | G74: Matériaux d'origine animale >50% | H74: Inférieur strictement à 0,5 kg | I74: €/unité | J74: 0.05 | K74: 0.05 | L74: 048 | M74: 0.06
A75: REP ABJ | B75: 3 | C75: 21100060201 | D75: modulé | E75: Articles de bricolage | F75: Outillage à main et leurs accessoires | G75: Matériaux d'origine animale >50% | H75: Inférieur strictement à 0,5 kg | I75: €/unité | J75: 0.05 | K75: 0.05 | L75: 048 | M75: 0.06
A76: REP ABJ | B76: 3 | C76: 21100060210 | E76: Articles de bricolage | F76: Outillage à main et leurs accessoires | G76: Matériaux d'origine animale >50% | H76: Compris entre 0,5 kg et 1 kg exclus | I76: €/unité | J76: 0.16 | K76: 0.16 | L76: 099 | M76: 0.192
A77: REP ABJ | B77: 3 | C77: 21100060211 | D77: modulé | E77: Articles de bricolage | F77: Outillage à main et leurs accessoires | G77: Matériaux d'origine animale >50% | H77: Compris entre 0,5 kg et 1 kg exclus | I77: €/unité | J77: 0.16 | K77: 0.16 | L77: 099 | M77: 0.192
A78: REP ABJ | B78: 3 | C78: 21100060220 | E78: Articles de bricolage | F78: Outillage à main et leurs accessoires | G78: Matériaux d'origine animale >50% | H78: Compris entre 1 kg et 2 kg exclus | I78: €/unité | J78: 0.32 | K78: 0.32 | L78: 447 | M78: 0.384
A79: REP ABJ | B79: 3 | C79: 21100060221 | D79: modulé | E79: Articles de bricolage | F79: Outillage à main et leurs accessoires | G79: Matériaux d'origine animale >50% | H79: Compris entre 1 kg et 2 kg exclus | I79: €/unité | J79: 0.32 | K79: 0.32 | L79: 447 | M79: 0.384
A80: REP ABJ | B80: 3 | C80: 21100060520 | E80: Articles de bricolage | F80: Outillage à main et leurs accessoires | G80: Matériaux d'origine animale >50% | H80: Compris entre 2 kg et 3 kg exclus | I80: €/unité | J80: 0.54 | K80: 0.54 | L80: 500 | M80: 0.648
A81: REP ABJ | B81: 3 | C81: 21100060521 | D81: modulé | E81: Articles de bricolage | F81: Outillage à main et leurs accessoires | G81: Matériaux d'origine animale >50% | H81: Compris entre 2 kg et 3 kg exclus | I81: €/unité | J81: 0.54 | K81: 0.54 | L81: 500 | M81: 0.648
A82: REP ABJ | B82: 3 | C82: 21100060530 | E82: Articles de bricolage | F82: Outillage à main et leurs accessoires | G82: Matériaux d'origine animale >50% | H82: Compris entre 3 kg et 5 kg exclus | I82: €/unité | J82: 0.86 | K82: 0.86 | L82: 501 | M82: 1.032
A83: REP ABJ | B83: 3 | C83: 21100060531 | D83: modulé | E83: Articles de bricolage | F83: Outillage à main et leurs accessoires | G83: Matériaux d'origine animale >50% | H83: Compris entre 3 kg et 5 kg exclus | I83: €/unité | J83: 0.86 | K83: 0.86 | L83: 501 | M83: 1.032
A84: REP ABJ | B84: 3 | C84: 21100060540 | E84: Articles de bricolage | F84: Outillage à main et leurs accessoires | G84: Matériaux d'origine animale >50% | H84: Compris entre 5 kg et 7 kg exclus | I84: €/unité | J84: 1.51 | K84: 1.51 | L84: 502 | M84: 1.812
A85: REP ABJ | B85: 3 | C85: 21100060541 | D85: modulé | E85: Articles de bricolage | F85: Outillage à main et leurs accessoires | G85: Matériaux d'origine animale >50% | H85: Compris entre 5 kg et 7 kg exclus | I85: €/unité | J85: 1.51 | K85: 1.51 | L85: 502 | M85: 1.812
A86: REP ABJ | B86: 3 | C86: 21100190000 | E86: Articles de bricolage | F86: Outillage à main et leurs accessoires | G86: Papier carton >50% avec d'autres matériaux (hors verre) | H86: Eléments de toutes dimensions et poids | I86: € / Tonne | J86: 215 | K86: 215 | L86: 498 | M86: 258
A87: REP ABJ | B87: 3 | C87: 21100190001 | D87: modulé | E87: Articles de bricolage | F87: Outillage à main et leurs accessoires | G87: Papier carton >50% avec d'autres matériaux (hors verre) | H87: Eléments de toutes dimensions et poids | I87: € / Tonne | J87: 215 | K87: 215 | L87: 498 | M87: 258
A88: REP ABJ | B88: 3 | C88: 21100190200 | E88: Articles de bricolage | F88: Outillage à main et leurs accessoires | G88: Papier carton >50% avec d'autres matériaux (hors verre) | H88: Inférieur strictement à 0,5 kg | I88: €/unité | J88: 0.05 | K88: 0.05 | L88: 048 | M88: 0.06
A89: REP ABJ | B89: 3 | C89: 21100190201 | D89: modulé | E89: Articles de bricolage | F89: Outillage à main et leurs accessoires | G89: Papier carton >50% avec d'autres matériaux (hors verre) | H89: Inférieur strictement à 0,5 kg | I89: €/unité | J89: 0.05 | K89: 0.05 | L89: 048 | M89: 0.06
A90: REP ABJ | B90: 3 | C90: 21100190210 | E90: Articles de bricolage | F90: Outillage à main et leurs accessoires | G90: Papier carton >50% avec d'autres matériaux (hors verre) | H90: Compris entre 0,5 kg et 1 kg exclus | I90: €/unité | J90: 0.16 | K90: 0.16 | L90: 099 | M90: 0.192
A91: REP ABJ | B91: 3 | C91: 21100190211 | D91: modulé | E91: Articles de bricolage | F91: Outillage à main et leurs accessoires | G91: Papier carton >50% avec d'autres matériaux (hors verre) | H91: Compris entre 0,5 kg et 1 kg exclus | I91: €/unité | J91: 0.16 | K91: 0.16 | L91: 099 | M91: 0.192
A92: REP ABJ | B92: 3 | C92: 21100190220 | E92: Articles de bricolage | F92: Outillage à main et leurs accessoires | G92: Papier carton >50% avec d'autres matériaux (hors verre) | H92: Compris entre 1 kg et 2 kg exclus | I92: €/unité | J92: 0.32 | K92: 0.32 | L92: 447 | M92: 0.384
A93: REP ABJ | B93: 3 | C93: 21100190221 | D93: modulé | E93: Articles de bricolage | F93: Outillage à main et leurs accessoires | G93: Papier carton >50% avec d'autres matériaux (hors verre) | H93: Compris entre 1 kg et 2 kg exclus | I93: €/unité | J93: 0.32 | K93: 0.32 | L93: 447 | M93: 0.384
A94: REP ABJ | B94: 3 | C94: 21100190520 | E94: Articles de bricolage | F94: Outillage à main et leurs accessoires | G94: Papier carton >50% avec d'autres matériaux (hors verre) | H94: Compris entre 2 kg et 3 kg exclus | I94: €/unité | J94: 0.54 | K94: 0.54 | L94: 500 | M94: 0.648
A95: REP ABJ | B95: 3 | C95: 21100190521 | D95: modulé | E95: Articles de bricolage | F95: Outillage à main et leurs accessoires | G95: Papier carton >50% avec d'autres matériaux (hors verre) | H95: Compris entre 2 kg et 3 kg exclus | I95: €/unité | J95: 0.54 | K95: 0.54 | L95: 500 | M95: 0.648
A96: REP ABJ | B96: 3 | C96: 21100190530 | E96: Articles de bricolage | F96: Outillage à main et leurs accessoires | G96: Papier carton >50% avec d'autres matériaux (hors verre) | H96: Compris entre 3 kg et 5 kg exclus | I96: €/unité | J96: 0.86 | K96: 0.86 | L96: 501 | M96: 1.032
A97: REP ABJ | B97: 3 | C97: 21100190531 | D97: modulé | E97: Articles de bricolage | F97: Outillage à main et leurs accessoires | G97: Papier carton >50% avec d'autres matériaux (hors verre) | H97: Compris entre 3 kg et 5 kg exclus | I97: €/unité | J97: 0.86 | K97: 0.86 | L97: 501 | M97: 1.032
A98: REP ABJ | B98: 3 | C98: 21100190540 | E98: Articles de bricolage | F98: Outillage à main et leurs accessoires | G98: Papier carton >50% avec d'autres matériaux (hors verre) | H98: Compris entre 5 kg et 7 kg exclus | I98: €/unité | J98: 1.51 | K98: 1.51 | L98: 502 | M98: 1.812
A99: REP ABJ | B99: 3 | C99: 21100190541 | D99: modulé | E99: Articles de bricolage | F99: Outillage à main et leurs accessoires | G99: Papier carton >50% avec d'autres matériaux (hors verre) | H99: Compris entre 5 kg et 7 kg exclus | I99: €/unité | J99: 1.51 | K99: 1.51 | L99: 502 | M99: 1.812
A100: REP ABJ | B100: 3 | C100: 21100200000 | E100: Articles de bricolage | F100: Outillage à main et leurs accessoires | G100: Massif et assimilés certifiés >75% | H100: Eléments de toutes dimensions et poids | I100: € / Tonne | J100: 45 | K100: 45 | L100: 169 | M100: 54
A101: REP ABJ | B101: 3 | C101: 21100200001 | D101: modulé | E101: Articles de bricolage | F101: Outillage à main et leurs accessoires | G101: Massif et assimilés certifiés >75% | H101: Eléments de toutes dimensions et poids | I101: € / Tonne | J101: 45 | K101: 45 | L101: 169 | M101: 54
A102: REP ABJ | B102: 3 | C102: 21100200200 | E102: Articles de bricolage | F102: Outillage à main et leurs accessoires | G102: Massif et assimilés certifiés >75% | H102: Inférieur strictement à 0,5 kg | I102: €/unité | J102: 0.01 | K102: 0.01 | L102: 260 | M102: 0.012
A103: REP ABJ | B103: 3 | C103: 21100200201 | D103: modulé | E103: Articles de bricolage | F103: Outillage à main et leurs accessoires | G103: Massif et assimilés certifiés >75% | H103: Inférieur strictement à 0,5 kg | I103: €/unité | J103: 0.01 | K103: 0.01 | L103: 260 | M103: 0.012
A104: REP ABJ | B104: 3 | C104: 21100200210 | E104: Articles de bricolage | F104: Outillage à main et leurs accessoires | G104: Massif et assimilés certifiés >75% | H104: Compris entre 0,5 kg et 1 kg exclus | I104: €/unité | J104: 0.03 | K104: 0.03 | L104: 092 | M104: 0.036
A105: REP ABJ | B105: 3 | C105: 21100200211 | D105: modulé | E105: Articles de bricolage | F105: Outillage à main et leurs accessoires | G105: Massif et assimilés certifiés >75% | H105: Compris entre 0,5 kg et 1 kg exclus | I105: €/unité | J105: 0.03 | K105: 0.03 | L105: 092 | M105: 0.036
A106: REP ABJ | B106: 3 | C106: 21100200220 | E106: Articles de bricolage | F106: Outillage à main et leurs accessoires | G106: Massif et assimilés certifiés >75% | H106: Compris entre 1 kg et 2 kg exclus | I106: €/unité | J106: 0.07 | K106: 0.07 | L106: 247 | M106: 0.084
A107: REP ABJ | B107: 3 | C107: 21100200221 | D107: modulé | E107: Articles de bricolage | F107: Outillage à main et leurs accessoires | G107: Massif et assimilés certifiés >75% | H107: Compris entre 1 kg et 2 kg exclus | I107: €/unité | J107: 0.07 | K107: 0.07 | L107: 247 | M107: 0.084
A108: REP ABJ | B108: 3 | C108: 21100200520 | E108: Articles de bricolage | F108: Outillage à main et leurs accessoires | G108: Massif et assimilés certifiés >75% | H108: Compris entre 2 kg et 3 kg exclus | I108: €/unité | J108: 0.11 | K108: 0.11 | L108: 262 | M108: 0.132
A109: REP ABJ | B109: 3 | C109: 21100200521 | D109: modulé | E109: Articles de bricolage | F109: Outillage à main et leurs accessoires | G109: Massif et assimilés certifiés >75% | H109: Compris entre 2 kg et 3 kg exclus | I109: €/unité | J109: 0.11 | K109: 0.11 | L109: 262 | M109: 0.132
A110: REP ABJ | B110: 3 | C110: 21100200530 | E110: Articles de bricolage | F110: Outillage à main et leurs accessoires | G110: Massif et assimilés certifiés >75% | H110: Compris entre 3 kg et 5 kg exclus | I110: €/unité | J110: 0.18 | K110: 0.18 | L110: 100 | M110: 0.216
A111: REP ABJ | B111: 3 | C111: 21100200531 | D111: modulé | E111: Articles de bricolage | F111: Outillage à main et leurs accessoires | G111: Massif et assimilés certifiés >75% | H111: Compris entre 3 kg et 5 kg exclus | I111: €/unité | J111: 0.18 | K111: 0.18 | L111: 100 | M111: 0.216
A112: REP ABJ | B112: 3 | C112: 21100200540 | E112: Articles de bricolage | F112: Outillage à main et leurs accessoires | G112: Massif et assimilés certifiés >75% | H112: Compris entre 5 kg et 7 kg exclus | I112: €/unité | J112: 0.32 | K112: 0.32 | L112: 447 | M112: 0.384
A113: REP ABJ | B113: 3 | C113: 21100200541 | D113: modulé | E113: Articles de bricolage | F113: Outillage à main et leurs accessoires | G113: Massif et assimilés certifiés >75% | H113: Compris entre 5 kg et 7 kg exclus | I113: €/unité | J113: 0.32 | K113: 0.32 | L113: 447 | M113: 0.384
A114: REP ABJ | B114: 3 | C114: 21100210000 | E114: Articles de bricolage | F114: Outillage à main et leurs accessoires | G114: Massif et assimilés >75% | H114: Eléments de toutes dimensions et poids | I114: € / Tonne | J114: 45 | K114: 45 | L114: 169 | M114: 54
A115: REP ABJ | B115: 3 | C115: 21100210001 | D115: modulé | E115: Articles de bricolage | F115: Outillage à main et leurs accessoires | G115: Massif et assimilés >75% | H115: Eléments de toutes dimensions et poids | I115: € / Tonne | J115: 45 | K115: 45 | L115: 169 | M115: 54
A116: REP ABJ | B116: 3 | C116: 21100210200 | E116: Articles de bricolage | F116: Outillage à main et leurs accessoires | G116: Massif et assimilés >75% | H116: Inférieur strictement à 0,5 kg | I116: €/unité | J116: 0.01 | K116: 0.01 | L116: 260 | M116: 0.012
A117: REP ABJ | B117: 3 | C117: 21100210201 | D117: modulé | E117: Articles de bricolage | F117: Outillage à main et leurs accessoires | G117: Massif et assimilés >75% | H117: Inférieur strictement à 0,5 kg | I117: €/unité | J117: 0.01 | K117: 0.01 | L117: 260 | M117: 0.012
A118: REP ABJ | B118: 3 | C118: 21100210210 | E118: Articles de bricolage | F118: Outillage à main et leurs accessoires | G118: Massif et assimilés >75% | H118: Compris entre 0,5 kg et 1 kg exclus | I118: €/unité | J118: 0.03 | K118: 0.03 | L118: 092 | M118: 0.036
A119: REP ABJ | B119: 3 | C119: 21100210211 | D119: modulé | E119: Articles de bricolage | F119: Outillage à main et leurs accessoires | G119: Massif et assimilés >75% | H119: Compris entre 0,5 kg et 1 kg exclus | I119: €/unité | J119: 0.03 | K119: 0.03 | L119: 092 | M119: 0.036
A120: REP ABJ | B120: 3 | C120: 21100210220 | E120: Articles de bricolage | F120: Outillage à main et leurs accessoires | G120: Massif et assimilés >75% | H120: Compris entre 1 kg et 2 kg exclus | I120: €/unité | J120: 0.07 | K120: 0.07 | L120: 247 | M120: 0.084
A121: REP ABJ | B121: 3 | C121: 21100210221 | D121: modulé | E121: Articles de bricolage | F121: Outillage à main et leurs accessoires | G121: Massif et assimilés >75% | H121: Compris entre 1 kg et 2 kg exclus | I121: €/unité | J121: 0.07 | K121: 0.07 | L121: 247 | M121: 0.084
A122: REP ABJ | B122: 3 | C122: 21100210520 | E122: Articles de bricolage | F122: Outillage à main et leurs accessoires | G122: Massif et assimilés >75% | H122: Compris entre 2 kg et 3 kg exclus | I122: €/unité | J122: 0.11 | K122: 0.11 | L122: 262 | M122: 0.132
A123: REP ABJ | B123: 3 | C123: 21100210521 | D123: modulé | E123: Articles de bricolage | F123: Outillage à main et leurs accessoires | G123: Massif et assimilés >75% | H123: Compris entre 2 kg et 3 kg exclus | I123: €/unité | J123: 0.11 | K123: 0.11 | L123: 262 | M123: 0.132
A124: REP ABJ | B124: 3 | C124: 21100210530 | E124: Articles de bricolage | F124: Outillage à main et leurs accessoires | G124: Massif et assimilés >75% | H124: Compris entre 3 kg et 5 kg exclus | I124: €/unité | J124: 0.18 | K124: 0.18 | L124: 100 | M124: 0.216
A125: REP ABJ | B125: 3 | C125: 21100210531 | D125: modulé | E125: Articles de bricolage | F125: Outillage à main et leurs accessoires | G125: Massif et assimilés >75% | H125: Compris entre 3 kg et 5 kg exclus | I125: €/unité | J125: 0.18 | K125: 0.18 | L125: 100 | M125: 0.216
A126: REP ABJ | B126: 3 | C126: 21100210540 | E126: Articles de bricolage | F126: Outillage à main et leurs accessoires | G126: Massif et assimilés >75% | H126: Compris entre 5 kg et 7 kg exclus | I126: €/unité | J126: 0.32 | K126: 0.32 | L126: 447 | M126: 0.384
A127: REP ABJ | B127: 3 | C127: 21100210541 | D127: modulé | E127: Articles de bricolage | F127: Outillage à main et leurs accessoires | G127: Massif et assimilés >75% | H127: Compris entre 5 kg et 7 kg exclus | I127: €/unité | J127: 0.32 | K127: 0.32 | L127: 447 | M127: 0.384
A128: REP ABJ | B128: 3 | C128: 21100250000 | E128: Articles de bricolage | F128: Outillage à main et leurs accessoires | G128: Panneaux de particules ou OSB >75% | H128: Eléments de toutes dimensions et poids | I128: € / Tonne | J128: 45 | K128: 45 | L128: 169 | M128: 54
A129: REP ABJ | B129: 3 | C129: 21100250001 | D129: modulé | E129: Articles de bricolage | F129: Outillage à main et leurs accessoires | G129: Panneaux de particules ou OSB >75% | H129: Eléments de toutes dimensions et poids | I129: € / Tonne | J129: 45 | K129: 45 | L129: 169 | M129: 54
A130: REP ABJ | B130: 3 | C130: 21100250200 | E130: Articles de bricolage | F130: Outillage à main et leurs accessoires | G130: Panneaux de particules ou OSB >75% | H130: Inférieur strictement à 0,5 kg | I130: €/unité | J130: 0.01 | K130: 0.01 | L130: 260 | M130: 0.012
A131: REP ABJ | B131: 3 | C131: 21100250201 | D131: modulé | E131: Articles de bricolage | F131: Outillage à main et leurs accessoires | G131: Panneaux de particules ou OSB >75% | H131: Inférieur strictement à 0,5 kg | I131: €/unité | J131: 0.01 | K131: 0.01 | L131: 260 | M131: 0.012
A132: REP ABJ | B132: 3 | C132: 21100250210 | E132: Articles de bricolage | F132: Outillage à main et leurs accessoires | G132: Panneaux de particules ou OSB >75% | H132: Compris entre 0,5 kg et 1 kg exclus | I132: €/unité | J132: 0.03 | K132: 0.03 | L132: 092 | M132: 0.036
A133: REP ABJ | B133: 3 | C133: 21100250211 | D133: modulé | E133: Articles de bricolage | F133: Outillage à main et leurs accessoires | G133: Panneaux de particules ou OSB >75% | H133: Compris entre 0,5 kg et 1 kg exclus | I133: €/unité | J133: 0.03 | K133: 0.03 | L133: 092 | M133: 0.036
A134: REP ABJ | B134: 3 | C134: 21100250220 | E134: Articles de bricolage | F134: Outillage à main et leurs accessoires | G134: Panneaux de particules ou OSB >75% | H134: Compris entre 1 kg et 2 kg exclus | I134: €/unité | J134: 0.07 | K134: 0.07 | L134: 247 | M134: 0.084
A135: REP ABJ | B135: 3 | C135: 21100250221 | D135: modulé | E135: Articles de bricolage | F135: Outillage à main et leurs accessoires | G135: Panneaux de particules ou OSB >75% | H135: Compris entre 1 kg et 2 kg exclus | I135: €/unité | J135: 0.07 | K135: 0.07 | L135: 247 | M135: 0.084
A136: REP ABJ | B136: 3 | C136: 21100250520 | E136: Articles de bricolage | F136: Outillage à main et leurs accessoires | G136: Panneaux de particules ou OSB >75% | H136: Compris entre 2 kg et 3 kg exclus | I136: €/unité | J136: 0.11 | K136: 0.11 | L136: 262 | M136: 0.132
A137: REP ABJ | B137: 3 | C137: 21100250521 | D137: modulé | E137: Articles de bricolage | F137: Outillage à main et leurs accessoires | G137: Panneaux de particules ou OSB >75% | H137: Compris entre 2 kg et 3 kg exclus | I137: €/unité | J137: 0.11 | K137: 0.11 | L137: 262 | M137: 0.132
A138: REP ABJ | B138: 3 | C138: 21100250530 | E138: Articles de bricolage | F138: Outillage à main et leurs accessoires | G138: Panneaux de particules ou OSB >75% | H138: Compris entre 3 kg et 5 kg exclus | I138: €/unité | J138: 0.18 | K138: 0.18 | L138: 100 | M138: 0.216
A139: REP ABJ | B139: 3 | C139: 21100250531 | D139: modulé | E139: Articles de bricolage | F139: Outillage à main et leurs accessoires | G139: Panneaux de particules ou OSB >75% | H139: Compris entre 3 kg et 5 kg exclus | I139: €/unité | J139: 0.18 | K139: 0.18 | L139: 100 | M139: 0.216
A140: REP ABJ | B140: 3 | C140: 21100250540 | E140: Articles de bricolage | F140: Outillage à main et leurs accessoires | G140: Panneaux de particules ou OSB >75% | H140: Compris entre 5 kg et 7 kg exclus | I140: €/unité | J140: 0.32 | K140: 0.32 | L140: 447 | M140: 0.384
A141: REP ABJ | B141: 3 | C141: 21100250541 | D141: modulé | E141: Articles de bricolage | F141: Outillage à main et leurs accessoires | G141: Panneaux de particules ou OSB >75% | H141: Compris entre 5 kg et 7 kg exclus | I141: €/unité | J141: 0.32 | K141: 0.32 | L141: 447 | M141: 0.384
A142: REP ABJ | B142: 3 | C142: 21100280000 | E142: Articles de bricolage | F142: Outillage à main et leurs accessoires | G142: Métal >90% | H142: Eléments de toutes dimensions et poids | I142: € / Tonne | J142: 10 | K142: 10 | L142: 138 | M142: 12
A143: REP ABJ | B143: 3 | C143: 21100280001 | D143: modulé | E143: Articles de bricolage | F143: Outillage à main et leurs accessoires | G143: Métal >90% | H143: Eléments de toutes dimensions et poids | I143: € / Tonne | J143: 10 | K143: 10 | L143: 138 | M143: 12
A144: REP ABJ | B144: 3 | C144: 21100280200 | E144: Articles de bricolage | F144: Outillage à main et leurs accessoires | G144: Métal >90% | H144: Inférieur strictement à 0,5 kg | I144: €/unité | J144: 0.01 | K144: 0.01 | L144: 260 | M144: 0.012
A145: REP ABJ | B145: 3 | C145: 21100280201 | D145: modulé | E145: Articles de bricolage | F145: Outillage à main et leurs accessoires | G145: Métal >90% | H145: Inférieur strictement à 0,5 kg | I145: €/unité | J145: 0.01 | K145: 0.01 | L145: 260 | M145: 0.012
A146: REP ABJ | B146: 3 | C146: 21100280210 | E146: Articles de bricolage | F146: Outillage à main et leurs accessoires | G146: Métal >90% | H146: Compris entre 0,5 kg et 1 kg exclus | I146: €/unité | J146: 0.01 | K146: 0.01 | L146: 260 | M146: 0.012
A147: REP ABJ | B147: 3 | C147: 21100280211 | D147: modulé | E147: Articles de bricolage | F147: Outillage à main et leurs accessoires | G147: Métal >90% | H147: Compris entre 0,5 kg et 1 kg exclus | I147: €/unité | J147: 0.01 | K147: 0.01 | L147: 260 | M147: 0.012
A148: REP ABJ | B148: 3 | C148: 21100280220 | E148: Articles de bricolage | F148: Outillage à main et leurs accessoires | G148: Métal >90% | H148: Compris entre 1 kg et 2 kg exclus | I148: €/unité | J148: 0.02 | K148: 0.02 | L148: 047 | M148: 0.024
A149: REP ABJ | B149: 3 | C149: 21100280221 | D149: modulé | E149: Articles de bricolage | F149: Outillage à main et leurs accessoires | G149: Métal >90% | H149: Compris entre 1 kg et 2 kg exclus | I149: €/unité | J149: 0.02 | K149: 0.02 | L149: 047 | M149: 0.024
A150: REP ABJ | B150: 3 | C150: 21100280520 | E150: Articles de bricolage | F150: Outillage à main et leurs accessoires | G150: Métal >90% | H150: Compris entre 2 kg et 3 kg exclus | I150: €/unité | J150: 0.03 | K150: 0.03 | L150: 092 | M150: 0.036
A151: REP ABJ | B151: 3 | C151: 21100280521 | D151: modulé | E151: Articles de bricolage | F151: Outillage à main et leurs accessoires | G151: Métal >90% | H151: Compris entre 2 kg et 3 kg exclus | I151: €/unité | J151: 0.03 | K151: 0.03 | L151: 092 | M151: 0.036
A152: REP ABJ | B152: 3 | C152: 21100280530 | E152: Articles de bricolage | F152: Outillage à main et leurs accessoires | G152: Métal >90% | H152: Compris entre 3 kg et 5 kg exclus | I152: €/unité | J152: 0.04 | K152: 0.04 | L152: 002 | M152: 0.048
A153: REP ABJ | B153: 3 | C153: 21100280531 | D153: modulé | E153: Articles de bricolage | F153: Outillage à main et leurs accessoires | G153: Métal >90% | H153: Compris entre 3 kg et 5 kg exclus | I153: €/unité | J153: 0.04 | K153: 0.04 | L153: 002 | M153: 0.048
A154: REP ABJ | B154: 3 | C154: 21100280540 | E154: Articles de bricolage | F154: Outillage à main et leurs accessoires | G154: Métal >90% | H154: Compris entre 5 kg et 7 kg exclus | I154: €/unité | J154: 0.07 | K154: 0.07 | L154: 247 | M154: 0.084
A155: REP ABJ | B155: 3 | C155: 21100280541 | D155: modulé | E155: Articles de bricolage | F155: Outillage à main et leurs accessoires | G155: Métal >90% | H155: Compris entre 5 kg et 7 kg exclus | I155: €/unité | J155: 0.07 | K155: 0.07 | L155: 247 | M155: 0.084
A156: REP ABJ | B156: 3 | C156: 21100400000 | E156: Articles de bricolage | F156: Outillage à main et leurs accessoires | G156: Assemblage caoutchouc synthétique ou latex >50% avec d'autres matériaux | H156: Eléments de toutes dimensions et poids | I156: € / Tonne | J156: 215 | K156: 215 | L156: 498 | M156: 258
A157: REP ABJ | B157: 3 | C157: 21100400001 | D157: modulé | E157: Articles de bricolage | F157: Outillage à main et leurs accessoires | G157: Assemblage caoutchouc synthétique ou latex >50% avec d'autres matériaux | H157: Eléments de toutes dimensions et poids | I157: € / Tonne | J157: 215 | K157: 215 | L157: 498 | M157: 258
A158: REP ABJ | B158: 3 | C158: 21100400200 | E158: Articles de bricolage | F158: Outillage à main et leurs accessoires | G158: Assemblage caoutchouc synthétique ou latex >50% avec d'autres matériaux | H158: Inférieur strictement à 0,5 kg | I158: €/unité | J158: 0.05 | K158: 0.05 | L158: 048 | M158: 0.06
A159: REP ABJ | B159: 3 | C159: 21100400201 | D159: modulé | E159: Articles de bricolage | F159: Outillage à main et leurs accessoires | G159: Assemblage caoutchouc synthétique ou latex >50% avec d'autres matériaux | H159: Inférieur strictement à 0,5 kg | I159: €/unité | J159: 0.05 | K159: 0.05 | L159: 048 | M159: 0.06
A160: REP ABJ | B160: 3 | C160: 21100400210 | E160: Articles de bricolage | F160: Outillage à main et leurs accessoires | G160: Assemblage caoutchouc synthétique ou latex >50% avec d'autres matériaux | H160: Compris entre 0,5 kg et 1 kg exclus | I160: €/unité | J160: 0.16 | K160: 0.16 | L160: 099 | M160: 0.192
A161: REP ABJ | B161: 3 | C161: 21100400211 | D161: modulé | E161: Articles de bricolage | F161: Outillage à main et leurs accessoires | G161: Assemblage caoutchouc synthétique ou latex >50% avec d'autres matériaux | H161: Compris entre 0,5 kg et 1 kg exclus | I161: €/unité | J161: 0.16 | K161: 0.16 | L161: 099 | M161: 0.192
A162: REP ABJ | B162: 3 | C162: 21100400220 | E162: Articles de bricolage | F162: Outillage à main et leurs accessoires | G162: Assemblage caoutchouc synthétique ou latex >50% avec d'autres matériaux | H162: Compris entre 1 kg et 2 kg exclus | I162: €/unité | J162: 0.32 | K162: 0.32 | L162: 447 | M162: 0.384
A163: REP ABJ | B163: 3 | C163: 21100400221 | D163: modulé | E163: Articles de bricolage | F163: Outillage à main et leurs accessoires | G163: Assemblage caoutchouc synthétique ou latex >50% avec d'autres matériaux | H163: Compris entre 1 kg et 2 kg exclus | I163: €/unité | J163: 0.32 | K163: 0.32 | L163: 447 | M163: 0.384
A164: REP ABJ | B164: 3 | C164: 21100400520 | E164: Articles de bricolage | F164: Outillage à main et leurs accessoires | G164: Assemblage caoutchouc synthétique ou latex >50% avec d'autres matériaux | H164: Compris entre 2 kg et 3 kg exclus | I164: €/unité | J164: 0.54 | K164: 0.54 | L164: 500 | M164: 0.648
A165: REP ABJ | B165: 3 | C165: 21100400521 | D165: modulé | E165: Articles de bricolage | F165: Outillage à main et leurs accessoires | G165: Assemblage caoutchouc synthétique ou latex >50% avec d'autres matériaux | H165: Compris entre 2 kg et 3 kg exclus | I165: €/unité | J165: 0.54 | K165: 0.54 | L165: 500 | M165: 0.648
A166: REP ABJ | B166: 3 | C166: 21100400530 | E166: Articles de bricolage | F166: Outillage à main et leurs accessoires | G166: Assemblage caoutchouc synthétique ou latex >50% avec d'autres matériaux | H166: Compris entre 3 kg et 5 kg exclus | I166: €/unité | J166: 0.86 | K166: 0.86 | L166: 501 | M166: 1.032
A167: REP ABJ | B167: 3 | C167: 21100400531 | D167: modulé | E167: Articles de bricolage | F167: Outillage à main et leurs accessoires | G167: Assemblage caoutchouc synthétique ou latex >50% avec d'autres matériaux | H167: Compris entre 3 kg et 5 kg exclus | I167: €/unité | J167: 0.86 | K167: 0.86 | L167: 501 | M167: 1.032
A168: REP ABJ | B168: 3 | C168: 21100400540 | E168: Articles de bricolage | F168: Outillage à main et leurs accessoires | G168: Assemblage caoutchouc synthétique ou latex >50% avec d'autres matériaux | H168: Compris entre 5 kg et 7 kg exclus | I168: €/unité | J168: 1.51 | K168: 1.51 | L168: 502 | M168: 1.812
A169: REP ABJ | B169: 3 | C169: 21100400541 | D169: modulé | E169: Articles de bricolage | F169: Outillage à main et leurs accessoires | G169: Assemblage caoutchouc synthétique ou latex >50% avec d'autres matériaux | H169: Compris entre 5 kg et 7 kg exclus | I169: €/unité | J169: 1.51 | K169: 1.51 | L169: 502 | M169: 1.812
A170: REP ABJ | B170: 3 | C170: 21100410000 | E170: Articles de bricolage | F170: Outillage à main et leurs accessoires | G170: Plastiques (mono résine) >90% | H170: Eléments de toutes dimensions et poids | I170: € / Tonne | J170: 165 | K170: 165 | L170: 496 | M170: 198
A171: REP ABJ | B171: 3 | C171: 21100410001 | D171: modulé | E171: Articles de bricolage | F171: Outillage à main et leurs accessoires | G171: Plastiques (mono résine) >90% | H171: Eléments de toutes dimensions et poids | I171: € / Tonne | J171: 165 | K171: 165 | L171: 496 | M171: 198
A172: REP ABJ | B172: 3 | C172: 21100410200 | E172: Articles de bricolage | F172: Outillage à main et leurs accessoires | G172: Plastiques (mono résine) >90% | H172: Inférieur strictement à 0,5 kg | I172: €/unité | J172: 0.04 | K172: 0.04 | L172: 002 | M172: 0.048
A173: REP ABJ | B173: 3 | C173: 21100410201 | D173: modulé | E173: Articles de bricolage | F173: Outillage à main et leurs accessoires | G173: Plastiques (mono résine) >90% | H173: Inférieur strictement à 0,5 kg | I173: €/unité | J173: 0.04 | K173: 0.04 | L173: 002 | M173: 0.048
A174: REP ABJ | B174: 3 | C174: 21100410210 | E174: Articles de bricolage | F174: Outillage à main et leurs accessoires | G174: Plastiques (mono résine) >90% | H174: Compris entre 0,5 kg et 1 kg exclus | I174: €/unité | J174: 0.12 | K174: 0.12 | L174: 097 | M174: 0.144
A175: REP ABJ | B175: 3 | C175: 21100410211 | D175: modulé | E175: Articles de bricolage | F175: Outillage à main et leurs accessoires | G175: Plastiques (mono résine) >90% | H175: Compris entre 0,5 kg et 1 kg exclus | I175: €/unité | J175: 0.12 | K175: 0.12 | L175: 097 | M175: 0.144
A176: REP ABJ | B176: 3 | C176: 21100410220 | E176: Articles de bricolage | F176: Outillage à main et leurs accessoires | G176: Plastiques (mono résine) >90% | H176: Compris entre 1 kg et 2 kg exclus | I176: €/unité | J176: 0.25 | K176: 0.25 | L176: 095 | M176: 0.3
A177: REP ABJ | B177: 3 | C177: 21100410221 | D177: modulé | E177: Articles de bricolage | F177: Outillage à main et leurs accessoires | G177: Plastiques (mono résine) >90% | H177: Compris entre 1 kg et 2 kg exclus | I177: €/unité | J177: 0.25 | K177: 0.25 | L177: 095 | M177: 0.3
A178: REP ABJ | B178: 3 | C178: 21100410520 | E178: Articles de bricolage | F178: Outillage à main et leurs accessoires | G178: Plastiques (mono résine) >90% | H178: Compris entre 2 kg et 3 kg exclus | I178: €/unité | J178: 0.41 | K178: 0.41 | L178: 503 | M178: 0.492
A179: REP ABJ | B179: 3 | C179: 21100410521 | D179: modulé | E179: Articles de bricolage | F179: Outillage à main et leurs accessoires | G179: Plastiques (mono résine) >90% | H179: Compris entre 2 kg et 3 kg exclus | I179: €/unité | J179: 0.41 | K179: 0.41 | L179: 503 | M179: 0.492
A180: REP ABJ | B180: 3 | C180: 21100410530 | E180: Articles de bricolage | F180: Outillage à main et leurs accessoires | G180: Plastiques (mono résine) >90% | H180: Compris entre 3 kg et 5 kg exclus | I180: €/unité | J180: 0.66 | K180: 0.66 | L180: 453 | M180: 0.792
A181: REP ABJ | B181: 3 | C181: 21100410531 | D181: modulé | E181: Articles de bricolage | F181: Outillage à main et leurs accessoires | G181: Plastiques (mono résine) >90% | H181: Compris entre 3 kg et 5 kg exclus | I181: €/unité | J181: 0.66 | K181: 0.66 | L181: 453 | M181: 0.792
A182: REP ABJ | B182: 3 | C182: 21100410540 | E182: Articles de bricolage | F182: Outillage à main et leurs accessoires | G182: Plastiques (mono résine) >90% | H182: Compris entre 5 kg et 7 kg exclus | I182: €/unité | J182: 1.16 | K182: 1.16 | L182: 504 | M182: 1.392
A183: REP ABJ | B183: 3 | C183: 21100410541 | D183: modulé | E183: Articles de bricolage | F183: Outillage à main et leurs accessoires | G183: Plastiques (mono résine) >90% | H183: Compris entre 5 kg et 7 kg exclus | I183: €/unité | J183: 1.16 | K183: 1.16 | L183: 504 | M183: 1.392
A184: REP ABJ | B184: 3 | C184: 21100420000 | E184: Articles de bricolage | F184: Outillage à main et leurs accessoires | G184: Polyterephtalate d'Ethylène (PET) >90% | H184: Eléments de toutes dimensions et poids | I184: € / Tonne | J184: 165 | K184: 165 | L184: 496 | M184: 198
A185: REP ABJ | B185: 3 | C185: 21100420001 | D185: modulé | E185: Articles de bricolage | F185: Outillage à main et leurs accessoires | G185: Polyterephtalate d'Ethylène (PET) >90% | H185: Eléments de toutes dimensions et poids | I185: € / Tonne | J185: 165 | K185: 165 | L185: 496 | M185: 198
A186: REP ABJ | B186: 3 | C186: 21100420200 | E186: Articles de bricolage | F186: Outillage à main et leurs accessoires | G186: Polyterephtalate d'Ethylène (PET) >90% | H186: Inférieur strictement à 0,5 kg | I186: €/unité | J186: 0.04 | K186: 0.04 | L186: 002 | M186: 0.048
A187: REP ABJ | B187: 3 | C187: 21100420201 | D187: modulé | E187: Articles de bricolage | F187: Outillage à main et leurs accessoires | G187: Polyterephtalate d'Ethylène (PET) >90% | H187: Inférieur strictement à 0,5 kg | I187: €/unité | J187: 0.04 | K187: 0.04 | L187: 002 | M187: 0.048
A188: REP ABJ | B188: 3 | C188: 21100420210 | E188: Articles de bricolage | F188: Outillage à main et leurs accessoires | G188: Polyterephtalate d'Ethylène (PET) >90% | H188: Compris entre 0,5 kg et 1 kg exclus | I188: €/unité | J188: 0.12 | K188: 0.12 | L188: 097 | M188: 0.144
A189: REP ABJ | B189: 3 | C189: 21100420211 | D189: modulé | E189: Articles de bricolage | F189: Outillage à main et leurs accessoires | G189: Polyterephtalate d'Ethylène (PET) >90% | H189: Compris entre 0,5 kg et 1 kg exclus | I189: €/unité | J189: 0.12 | K189: 0.12 | L189: 097 | M189: 0.144
A190: REP ABJ | B190: 3 | C190: 21100420220 | E190: Articles de bricolage | F190: Outillage à main et leurs accessoires | G190: Polyterephtalate d'Ethylène (PET) >90% | H190: Compris entre 1 kg et 2 kg exclus | I190: €/unité | J190: 0.25 | K190: 0.25 | L190: 095 | M190: 0.3
A191: REP ABJ | B191: 3 | C191: 21100420221 | D191: modulé | E191: Articles de bricolage | F191: Outillage à main et leurs accessoires | G191: Polyterephtalate d'Ethylène (PET) >90% | H191: Compris entre 1 kg et 2 kg exclus | I191: €/unité | J191: 0.25 | K191: 0.25 | L191: 095 | M191: 0.3
A192: REP ABJ | B192: 3 | C192: 21100420520 | E192: Articles de bricolage | F192: Outillage à main et leurs accessoires | G192: Polyterephtalate d'Ethylène (PET) >90% | H192: Compris entre 2 kg et 3 kg exclus | I192: €/unité | J192: 0.41 | K192: 0.41 | L192: 503 | M192: 0.492
A193: REP ABJ | B193: 3 | C193: 21100420521 | D193: modulé | E193: Articles de bricolage | F193: Outillage à main et leurs accessoires | G193: Polyterephtalate d'Ethylène (PET) >90% | H193: Compris entre 2 kg et 3 kg exclus | I193: €/unité | J193: 0.41 | K193: 0.41 | L193: 503 | M193: 0.492
A194: REP ABJ | B194: 3 | C194: 21100420530 | E194: Articles de bricolage | F194: Outillage à main et leurs accessoires | G194: Polyterephtalate d'Ethylène (PET) >90% | H194: Compris entre 3 kg et 5 kg exclus | I194: €/unité | J194: 0.66 | K194: 0.66 | L194: 453 | M194: 0.792
A195: REP ABJ | B195: 3 | C195: 21100420531 | D195: modulé | E195: Articles de bricolage | F195: Outillage à main et leurs accessoires | G195: Polyterephtalate d'Ethylène (PET) >90% | H195: Compris entre 3 kg et 5 kg exclus | I195: €/unité | J195: 0.66 | K195: 0.66 | L195: 453 | M195: 0.792
A196: REP ABJ | B196: 3 | C196: 21100420540 | E196: Articles de bricolage | F196: Outillage à main et leurs accessoires | G196: Polyterephtalate d'Ethylène (PET) >90% | H196: Compris entre 5 kg et 7 kg exclus | I196: €/unité | J196: 1.16 | K196: 1.16 | L196: 504 | M196: 1.392
A197: REP ABJ | B197: 3 | C197: 21100420541 | D197: modulé | E197: Articles de bricolage | F197: Outillage à main et leurs accessoires | G197: Polyterephtalate d'Ethylène (PET) >90% | H197: Compris entre 5 kg et 7 kg exclus | I197: €/unité | J197: 1.16 | K197: 1.16 | L197: 504 | M197: 1.392
A198: REP ABJ | B198: 3 | C198: 21100450000 | E198: Articles de bricolage | F198: Outillage à main et leurs accessoires | G198: PE ou PP ou mélange PP/PE >90% | H198: Eléments de toutes dimensions et poids | I198: € / Tonne | J198: 165 | K198: 165 | L198: 496 | M198: 198
A199: REP ABJ | B199: 3 | C199: 21100450001 | D199: modulé | E199: Articles de bricolage | F199: Outillage à main et leurs accessoires | G199: PE ou PP ou mélange PP/PE >90% | H199: Eléments de toutes dimensions et poids | I199: € / Tonne | J199: 165 | K199: 165 | L199: 496 | M199: 198
A200: REP ABJ | B200: 3 | C200: 21100450200 | E200: Articles de bricolage | F200: Outillage à main et leurs accessoires | G200: PE ou PP ou mélange PP/PE >90% | H200: Inférieur strictement à 0,5 kg | I200: €/unité | J200: 0.04 | K200: 0.04 | L200: 002 | M200: 0.048
... 4300 more rows

Sheet Codes petits producteurs
A1: Codification simplifiée
A3: Eco-participations à l'unité | B3: Tarif par unité | C3: Code correspondant
A6: Cat.3 – Bricolage
A7: 1. Outillage à main et leurs accessoires | B7: 0.16 | C7: 21100000890
A8: 2. Gros objets et machines non électriques/thermiques et leurs accessoires | B8: 1.50 | C8: 21101000890
A9: 3. Outils et supports de travail en hauteur | B9: 1.13 | C9: 21102000890
A10: 4. Equipement personnel et accessoires de protection de bricolage | B10: 0.05 | C10: 21103000890
A11: 5. Bâches de bricolage | B11: 0.86 | C11: 21104000890
A12: 6. Seaux, auges et contenants | B12: 0.04 | C12: 21105000890
A14: Cat.4 - Entretien et aménagement du jardin
A15: 7. Outils à main d'entretien du jardin | B15: 0.32 | C15: 22150000890
A16: 8. Equipement personnel de jardinage | B16: 0.32 | C16: 22151000890
A17: 9. Pots de fleur et contenants | B17: 0.43 | C17: 22152000890
A18: 10. Bâches, housses, films et filets | B18: 0.32 | C18: 22153000890
A19: 11. Equipement de plein air | B19: 0.75 | C19: 22154000890
A20: 12. Structures extérieures non maçonnées | B20: 1.13 | C20: 22155000890

Sheet ABJ - Grille d'éco-part
A1: Eco-participations à l’€ / Tonne | B1: Monomatériau (90%) | D1: Majorité (>50%) | F1: Monomatériau (90%) | H1: Majorité (>50%) | I1: Mix matériaux ou Assemblage de plus de 3 matériaux sans matériau majoritaire (hors ceux colonne E) ou composites ou non spécifié
B2: Matériaux inertes hors céramique | C2: Céramique | D2: Métal | E2: Bois ou Bois + Métal | F2: Textile non synthétique ou matériaux biosourcés (Carton, papier, lin, chanvre…) | G2: Textile synthétique, polymères ou Plastique monorésine | H2: Textile synthétique ou Plastique
A4: Cat.3 – Bricolage
A5: 1. Outillage à main et leurs accessoires | B5: - | C5: - | D5: 10 | E5: 45 | F5: 50 | G5: 165 | H5: 215 | I5: 215
A6: 2. Gros objets et machines non électriques/thermiques et leurs accessoires | B6: - | C6: - | D6: 3 | E6: 10 | F6: 30 | G6: 50 | H6: 75 | I6: 75
A7: 3. Outils et supports de travail en hauteur | B7: - | C7: - | D7: 3 | E7: 10 | F7: 30 | G7: 50 | H7: 75 | I7: 75
A8: 4. Equipement personnel et accessoires de protection de bricolage | B8: - | C8: - | D8: 10 | E8: 45 | F8: 50 | G8: 165 | H8: 215 | I8: 215
A9: 5. Bâches de bricolage | B9: - | C9: - | D9: - | E9: - | F9: 50 | G9: 165 | H9: 215 | I9: 215
A10: 6. Seaux, auges et contenants | B10: 5 | C10: 10 | D10: 10 | E10: 20 | F10: 50 | G10: 130 | H10: 170 | I10: 170
A12: Cat.4 - Entretien et aménagement du jardin
A13: 7. Outils à main d'entretien du jardin | B13: 5 | C13: 10 | D13: 10 | E13: 45 | F13: 50 | G13: 165 | H13: 215 | I13: 215
A14: 8. Equipement personnel de jardinage | B14: - | C14: - | D14: 10 | E14: 45 | F14: 50 | G14: 165 | H14: 215 | I14: 215
A15: 9. Pots de fleur et contenants | B15: 5 | C15: 10 | D15: 10 | E15: 20 | F15: 50 | G15: 130 | H15: 170 | I15: 170
A16: 10. Bâches, housses, films et filets | B16: - | C16: - | D16: - | E16: - | F16: 50 | G16: 165 | H16: 215 | I16: 215
A17: 11. Equipement de plein air | B17: 5 | C17: 10 | D17: 3 | E17: 10 | F17: 30 | G17: 50 | H17: 75 | I17: 75
A18: 12. Structures extérieures non maçonnées | B18: 5 | C18: 10 | D18: 3 | E18: 10 | F18: 30 | G18: 50 | H18: 75 | I18: 75
A20: Barème alternatif par tranches de poids
A23: Gros objets, supports de travail en hauteur, équipements de plein air et structures extérieures | B23: Monomatériau (90%) | D23: Majorité (>50%) | F23: Monomatériau (90%) | H23: Majorité (>50%) | I23: Mix matériaux ou Assemblage de plus de 3 matériaux sans matériau majoritaire (hors ceux colonne E) ou composites ou non spécifié
B24: Matériaux inertes hors céramique | C24: Céramique | D24: Métal | E24: Bois ou Bois + Métal | F24: Textile non synthétique ou matériaux biosourcés (Carton, papier, lin, chanvre…) | G24: Textile synthétique, polymères ou Plastique monorésine | H24: Textile synthétique ou Plastique
A25: inférieur strictement à 0,5 kg | B25: 0.01 | C25: 0.01 | D25: 0.01 | E25: 0.01 | F25: 0.01 | G25: 0.01 | H25: 0.02 | I25: 0.02
A26: compris entre 0,5 kg et 1 kg exclus | B26: 0.01 | C26: 0.01 | D26: 0.01 | E26: 0.01 | F26: 0.02 | G26: 0.04 | H26: 0.06 | I26: 0.06
A27: compris entre 1 kg et 2 kg exclus | B27: 0.01 | C27: 0.02 | D27: 0.01 | E27: 0.02 | F27: 0.05 | G27: 0.08 | H27: 0.11 | I27: 0.11
A28: compris entre 2 kg et 3 kg exclus | B28: 0.01 | C28: 0.03 | D28: 0.01 | E28: 0.03 | F28: 0.08 | G28: 0.13 | H28: 0.19 | I28: 0.19
A29: compris entre 3 kg et 5 kg exclus | B29: 0.02 | C29: 0.04 | D29: 0.01 | E29: 0.04 | F29: 0.12 | G29: 0.2 | H29: 0.3 | I29: 0.3
A30: compris entre 5 kg et 7 kg exclus | B30: 0.04 | C30: 0.07 | D30: 0.02 | E30: 0.07 | F30: 0.21 | G30: 0.35 | H30: 0.53 | I30: 0.53
A31: compris entre 7 kg et 10 kg exclus | B31: 0.05 | C31: 0.1 | D31: 0.03 | E31: 0.1 | F31: 0.3 | G31: 0.5 | H31: 0.75 | I31: 0.75
A32: compris entre 10 kg et 15 kg exclus | B32: 0.08 | C32: 0.15 | D32: 0.05 | E32: 0.15 | F32: 0.45 | G32: 0.75 | H32: 1.13 | I32: 1.13
A33: compris entre 15 kg et 20 kg exclus | B33: 0.1 | C33: 0.2 | D33: 0.06 | E33: 0.2 | F33: 0.6 | G33: 1 | H33: 1.5 | I33: 1.5
A34: compris entre 20 kg et 25 kg exclus | B34: 0.13 | C34: 0.25 | D34: 0.08 | E34: 0.25 | F34: 0.75 | G34: 1.25 | H34: 1.88 | I34: 1.88
A35: compris entre 25 kg et 30 kg exclus | B35: 0.15 | C35: 0.3 | D35: 0.09 | E35: 0.3 | F35: 0.9 | G35: 1.5 | H35: 2.25 | I35: 2.25
A36: compris entre 30 kg et 40 kg exclus | B36: 0.2 | C36: 0.4 | D36: 0.12 | E36: 0.4 | F36: 1.2 | G36: 2 | H36: 3 | I36: 3
A37: compris entre 40 kg et 50 kg exclus | B37: 0.25 | C37: 0.5 | D37: 0.15 | E37: 0.5 | F37: 1.5 | G37: 2.5 | H37: 3.75 | I37: 3.75
A40: Outils, bâches et équipement de protection | B40: Monomatériau (90%) | D40: Majorité (>50%) | F40: Monomatériau (90%) | H40: Majorité (>50%) | I40: Mix matériaux ou Assemblage de plus de 3 matériaux sans matériau majoritaire (hors ceux colonne E) ou composites ou non spécifié
B41: Matériaux inertes hors céramique | C41: Céramique | D41: Métal | E41: Bois ou Bois + Métal | F41: Textile non synthétique ou matériaux biosourcés (Carton, papier, lin, chanvre…) | G41: Textile synthétique, polymères ou Plastique monorésine | H41: Textile synthétique ou Plastique
A42: inférieur strictement à 0,5 kg | B42: 0.01 | C42: 0.01 | D42: 0.01 | E42: 0.01 | F42: 0.01 | G42: 0.04 | H42: 0.05 | I42: 0.05
A43: compris entre 0,5 kg et 1 kg exclus | B43: 0.01 | C43: 0.01 | D43: 0.01 | E43: 0.03 | F43: 0.04 | G43: 0.12 | H43: 0.16 | I43: 0.16
A44: compris entre 1 kg et 2 kg exclus | B44: 0.01 | C44: 0.02 | D44: 0.02 | E44: 0.07 | F44: 0.08 | G44: 0.25 | H44: 0.32 | I44: 0.32
A45: compris entre 2 kg et 3 kg exclus | B45: 0.01 | C45: 0.03 | D45: 0.03 | E45: 0.11 | F45: 0.13 | G45: 0.41 | H45: 0.54 | I45: 0.54
A46: compris entre 3 kg et 5 kg exclus | B46: 0.02 | C46: 0.04 | D46: 0.04 | E46: 0.18 | F46: 0.2 | G46: 0.66 | H46: 0.86 | I46: 0.86
A47: compris entre 5 kg et 7 kg exclus | B47: 0.04 | C47: 0.07 | D47: 0.07 | E47: 0.32 | F47: 0.35 | G47: 1.16 | H47: 1.51 | I47: 1.51
A50: Pots de fleur et contenants | B50: Monomatériau (90%) | D50: Majorité (>50%) | F50: Monomatériau (90%) | H50: Majorité (>50%) | I50: Mix matériaux ou Assemblage de plus de 3 matériaux sans matériau majoritaire (hors ceux colonne E) ou composites ou non spécifié
B51: Matériaux inertes hors céramique | C51: Céramique | D51: Métal | E51: Bois ou Bois + Métal | F51: Textile non synthétique ou matériaux biosourcés (Carton, papier, lin, chanvre…) | G51: Textile synthétique, polymères ou Plastique monorésine | H51: Textile synthétique ou Plastique
A52: inférieur strictement à 0,5 kg | B52: 0.01 | C52: 0.01 | D52: 0.01 | E52: 0.01 | F52: 0.01 | G52: 0.03 | H52: 0.04 | I52: 0.04
A53: compris entre 0,5 kg et 1 kg exclus | B53: 0.01 | C53: 0.01 | D53: 0.01 | E53: 0.02 | F53: 0.04 | G53: 0.1 | H53: 0.13 | I53: 0.13
A54: compris entre 1 kg et 2 kg exclus | B54: 0.01 | C54: 0.02 | D54: 0.02 | E54: 0.03 | F54: 0.08 | G54: 0.2 | H54: 0.26 | I54: 0.26
A55: compris entre 2 kg et 3 kg exclus | B55: 0.01 | C55: 0.03 | D55: 0.03 | E55: 0.05 | F55: 0.13 | G55: 0.33 | H55: 0.43 | I55: 0.43
A56: compris entre 3 kg et 5 kg exclus | B56: 0.02 | C56: 0.04 | D56: 0.04 | E56: 0.08 | F56: 0.2 | G56: 0.52 | H56: 0.68 | I56: 0.68
A57: compris entre 5 kg et 7 kg exclus | B57: 0.04 | C57: 0.07 | D57: 0.07 | E57: 0.14 | F57: 0.35 | G57: 0.91 | H57: 1.19 | I57: 1.19
A58: compris entre 7 kg et 10 kg exclus | B58: 0.05 | C58: 0.1 | D58: 0.1 | E58: 0.2 | F58: 0.5 | G58: 1.3 | H58: 1.7 | I58: 1.7
A59: compris entre 10 kg et 15 kg exclus | B59: 0.08 | C59: 0.15 | D59: 0.15 | E59: 0.3 | F59: 0.75 | G59: 1.95 | H59: 2.55 | I59: 2.55
A60: compris entre 15 kg et 20 kg exclus | B60: 0.1 | C60: 0.2 | D60: 0.2 | E60: 0.4 | F60: 1 | G60: 2.6 | H60: 3.4 | I60: 3.4
A63: Codification simplifiée
A65: Eco-participations à l'unité | B65: Tarif par unité | C65: Code correspondant
A68: Cat.3 – Bricolage
A69: 1. Outillage à main et leurs accessoires | B69: 0.16 | C69: 21100000890
A70: 2. Gros objets et machines non électriques/thermiques et leurs accessoires | B70: 1.50 | C70: 21101000890
A71: 3. Outils et supports de travail en hauteur | B71: 1.13 | C71: 21102000890
A72: 4. Equipement personnel et accessoires de protection de bricolage | B72: 0.05 | C72: 21103000890
A73: 5. Bâches de bricolage | B73: 0.86 | C73: 21104000890
A74: 6. Seaux, auges et contenants | B74: 0.04 | C74: 21105000890
A76: Cat.4 - Entretien et aménagement du jardin
A77: 7. Outils à main d'entretien du jardin | B77: 0.32 | C77: 22150000890
A78: 8. Equipement personnel de jardinage | B78: 0.32 | C78: 22151000890
A79: 9. Pots de fleur et contenants | B79: 0.43 | C79: 22152000890
A80: 10. Bâches, housses, films et filets | B80: 0.32 | C80: 22153000890
A81: 11. Equipement de plein air | B81: 0.75 | C81: 22154000890
A82: 12. Structures extérieures non maçonnées | B82: 1.13 | C82: 22155000890
